{"text_format":"1","workbook":"xlsx","n_sheets":5,"sheets":["SSK_Spesenblatt","Doppelspiele","HallenlisteSVRBESO","schiedsrichterliste20211115","Regionen"],"not_rendered":{"charts":0,"images":6,"macros":1,"external_links":0,"defined_names":32,"comments":1,"pivot_tables":0},"unopened":[],"bounds":{"document_bytes":16777216,"sheet_cells":100000,"rows_first":2000,"rows_last":500,"rows_between":2000,"halvings":0,"cell_chars":16384,"cell_head_chars":4096},"cells_cut":0,"cells_raw":0,"read":"whole","date_system":"1900"}

{"sheet":"SSK_Spesenblatt","index":0,"n_rows":54,"n_cols":43,"rows_kept":54,"cut":false,"hidden":false,"merged":[[54,27,54,30],[25,28,25,30],[53,28,53,30],[54,31,54,33],[53,0,53,6],[53,7,53,24],[53,31,53,33],[46,30,46,31],[46,32,46,33],[50,29,51,30],[50,31,51,33],[52,0,52,28],[52,29,52,30],[52,31,52,33],[48,0,48,28],[48,29,48,30],[48,31,48,33],[49,0,49,28],[49,29,49,30],[49,31,49,33],[44,0,44,33],[45,0,45,33],[46,0,46,7],[46,26,46,28],[47,0,47,28],[42,0,43,2],[42,3,43,11],[42,12,43,12],[42,13,43,21],[42,31,43,33],[42,29,43,30],[47,30,47,31],[47,32,47,33],[40,0,40,2],[40,3,40,7],[40,10,40,11],[40,12,40,28],[40,29,40,30],[40,31,40,33],[34,0,34,11],[34,12,34,33],[36,0,36,11],[36,12,36,33],[38,0,38,2],[38,3,38,6],[38,8,38,11],[38,12,38,33],[26,0,26,33],[27,0,27,33],[28,0,32,6],[28,7,31,18],[28,19,29,33],[30,19,31,33],[24,0,24,28],[24,29,24,30],[24,31,24,33],[25,0,25,6],[25,7,25,24],[25,31,25,33],[21,0,21,28],[21,29,21,30],[21,31,21,33],[21,36,21,38],[22,29,23,30],[22,31,23,33],[23,36,23,40],[22,0,23,6],[22,7,23,28],[20,0,20,28],[20,29,20,30],[20,31,20,33],[16,0,16,33],[17,0,17,33],[17,36,18,38],[18,0,18,7],[18,26,18,28],[18,30,18,31],[18,32,18,33],[12,0,12,2],[12,3,12,7],[12,10,12,11],[12,12,12,28],[12,29,12,30],[12,31,12,33],[10,37,10,40],[14,29,15,30],[19,0,19,28],[19,30,19,31],[19,32,19,33],[19,36,19,38],[50,0,51,6],[50,7,51,28],[2,39,3,39],[6,0,6,11],[6,12,6,33],[8,0,8,11],[8,12,8,33],[8,37,8,40],[0,0,4,6],[0,7,3,18],[0,19,1,33],[2,19,3,33],[2,36,4,36],[2,37,4,37],[13,36,15,38],[14,0,15,2],[14,3,15,11],[14,12,15,12],[14,13,15,21],[14,31,15,33],[10,0,10,2],[10,3,10,6],[10,8,10,11],[10,12,10,33]]}
[null,null,null,null,null,null,null,{"$f":"IF(AND(Cup=\"X\",Sprache=\"Deutsch\"),\"SWISS CUP !                              Heimteam bezahlt alle Spesen\",IF(AND(Cup=\"X\",Sprache=\"Français\"),\"SWISS CUP !                                  L'équipe local paie toutes les frais\",IF(AND(Cup=\"X\",Sprache=\"Italiano\"),\"SWISS CUP !                                  Squadra di casa paga tutte le spese\",)))","v":0},null,null,null,null,null,null,null,null,null,null,null,{"$f":"IF(Sprache=\"Deutsch\",\"SCHIEDSRICHTERSPESEN    gemäss VR\",IF(Sprache=\"Français\",\"FRAIS D'ARBITRAGE    selon RV\",IF(Sprache=\"Italiano\",\"Nota spese arbitraggio    secondo RP\")))","v":"SCHIEDSRICHTERSPESEN    gemäss VR"}]
[]
[null,null,null,null,null,null,null,null,null,null,null,null,null,null,null,null,null,null,null,{"$f":"IF(Sprache=\"Deutsch\",\"Schiedsrichter 1L &  Swiss Cup\",IF(Sprache=\"Français\",\"Arbitres 1L &  Swiss Cup\",IF(Sprache=\"Italiano\",\"Arbitro 1L &  Swiss Cup\")))","v":"Schiedsrichter 1L &  Swiss Cup"},null,null,null,null,null,null,null,null,null,null,null,null,null,null,null,null,{"$f":"IF(Sprache=\"Deutsch\",\"Sprache:\",IF(Sprache=\"Français\",\"Langue:\",IF(Sprache=\"Italiano\",\"Lingua:\")))","v":"Sprache:"},"Deutsch"]
[]
[]
[]
[{"$f":"IF(Sprache=\"Deutsch\",\"Name und Vorname:\",IF(Sprache=\"Français\",\"Nom et prénom:\",IF(Sprache=\"Italiano\",\"Nome e cognome:\")))","v":"Name und Vorname:"}]
[]
[{"$f":"IF(Sprache=\"Deutsch\",\"Strasse und Nr.:\",IF(Sprache=\"Français\",\"Rue et numéro:\",IF(Sprache=\"Italiano\",\"Via e numero:\")))","v":"Strasse und Nr.:"},null,null,null,null,null,null,null,null,null,null,null,{"$f":"IFERROR(IF(M7=\"\",\"\",CONCATENATE(VLOOKUP(M7,schiedsrichterliste20211115!E:J,2,FALSE),\" \",VLOOKUP(M7,schiedsrichterliste20211115!E:J,3,FALSE))),\"Bitte *Name Vorname* eintragen\")","v":""},null,null,null,null,null,null,null,null,null,null,null,null,null,null,null,null,null,null,null,null,null,null,null,"Google Maps:",{"$f":"IF(OR(D11=\"\",M11=\"\",ISNA(VLOOKUP($M$13,HallenlisteSVRBESO!A:G,4,FALSE))),IF(Sprache=\"Deutsch\",\"(Link wählbar wenn Adresse und Halle eingetragen)\",IF(Sprache=\"Français\",\"(Link sélectionnable si l'adresse et la salle sont entrés)\",IF(Sprache=\"Italiano\",\"(Link selezionabile se l'indirizzo e la sala sono stati inseriti)\"))),IF(M7=\"\",\"\",HYPERLINK(CONCATENATE(\"https://www.google.ch/maps/dir/\",$M$9,\"+\",$D$11,\"+\",$M$11,\"/\",VLOOKUP($M$13,HallenlisteSVRBESO!A:G,4,FALSE),\"+\",VLOOKUP($M$13,HallenlisteSVRBESO!A:G,5,FALSE),\"+\",VLOOKUP($M$13,HallenlisteSVRBESO!A:G,6,FALSE),\"+\",VLOOKUP($M$13,HallenlisteSVRBESO!A:G,7,FALSE)),IF(Sprache=\"Deutsch\",CONCATENATE(\"von \",$M$11,\" nach \",$M$13),IF(Sprache=\"Français\",CONCATENATE(\"de \",$M$11,\" à \",$M$13),IF(Sprache=\"Italiano\",CONCATENATE(\"da \",$M$11,\" a \",$M$13)))))))","v":"(Link wählbar wenn Adresse und Halle eingetragen)"}]
[]
[{"$f":"IF(Sprache=\"Deutsch\",\"PLZ:\",IF(Sprache=\"Français\",\"NPA:\",IF(Sprache=\"Italiano\",\"NPA:\")))","v":"PLZ:"},null,null,{"$f":"IFERROR(IF(M7=\"\",\"\",VLOOKUP(M7,schiedsrichterliste20211115!E:J,5,FALSE)),\"\")","v":""},null,null,null,null,{"$f":"IF(Sprache=\"Deutsch\",\"Ort:\",IF(Sprache=\"Français\",\"Lieu:\",IF(Sprache=\"Italiano\",\"Posto:\")))","v":"Ort:"},null,null,null,{"$f":"IFERROR(IF(M7=\"\",\"\",VLOOKUP(M7,schiedsrichterliste20211115!E:J,6,FALSE)),\"\")","v":""},null,null,null,null,null,null,null,null,null,null,null,null,null,null,null,null,null,null,null,null,null,null,null,null,{"$f":"IF(Sprache=\"Deutsch\",\"Adresse der Halle muss im Google Maps eingetragen werden.           (z.B. Game Center NL oder Region)\",IF(Sprache=\"Français\",\"L'adresse de la salle doit être saisie dans Google Maps.                    (p.e. Game Center LN ou région)\",IF(Sprache=\"Italiano\",\"L'indirizzo della sala deve essere inserito in Google Maps.                   (p.e. Game Center LN o regione)\")))","v":"Adresse der Halle muss im Google Maps eingetragen werden.           (z.B. Game Center NL oder Region)"}]
[]
[{"$f":"IF(Sprache=\"Deutsch\",\"Datum:\",IF(Sprache=\"Français\",\"Date:\",IF(Sprache=\"Italiano\",\"Data:\")))","v":"Datum:"},null,null,null,null,null,null,null,null,null,{"$f":"IF(Sprache=\"Deutsch\",\"Halle:\",IF(Sprache=\"Français\",\"Salle:\",IF(Sprache=\"Italiano\",\"Sala:\")))","v":"Halle:"},null,null,null,null,null,null,null,null,null,null,null,null,null,null,null,null,null,null,{"$f":"IF(Sprache=\"Deutsch\",\"Zeit:\",IF(Sprache=\"Français\",\"Heure:\",IF(Sprache=\"Italiano\",\"Ora:\")))","v":"Zeit:"}]
[null,null,null,null,null,null,null,null,null,null,null,null,null,null,null,null,null,null,null,null,null,null,null,null,null,null,null,null,null,null,null,null,null,null,null,null,{"$f":"IF(Sprache=\"Deutsch\",\" X eintragen\n Bei Cup mit 2L oder tiefer nur Cup\",IF(Sprache=\"Français\",\" Entrez X\n Cup avec 2L ou moins seulement Cup\",IF(Sprache=\"Italiano\",\" Inserisci X\n CUP se 2 Lega o inferiore\")))","v":" X eintragen\n Bei Cup mit 2L oder tiefer nur Cup"}]
[{"$f":"IF(Sprache=\"Deutsch\",\"Spiel:\",IF(Sprache=\"Français\",\"Match:\",IF(Sprache=\"Italiano\",\"Match:\")))","v":"Spiel:"},null,null,null,null,null,null,null,null,null,null,null,"-",null,null,null,null,null,null,null,null,null,null,{"$f":"IF(Sprache=\"Deutsch\",\"NLA\",IF(Sprache=\"Français\",\"LNA\",IF(Sprache=\"Italiano\",\"LNA\")))","v":"NLA"},{"$f":"IF(Sprache=\"Deutsch\",\"NLB\",IF(Sprache=\"Français\",\"LNB\",IF(Sprache=\"Italiano\",\"LNB\")))","v":"NLB"},"1L","LR","Cup","RL",{"$f":"IF(Sprache=\"Deutsch\",\"Spiel-#:\",IF(Sprache=\"Français\",\"Match-#:\",IF(Sprache=\"Italiano\",\"Match-#:\")))","v":"Spiel-#:"},null,null,null,null,null,null,null,null,null,null,{"$f":"IF(Sprache=\"Deutsch\",\"Reiseentschädigung RL:\",IF(Sprache=\"Français\",\"Frais de déplacement RL:\",IF(Sprache=\"Italiano\",\"Indennità di viaggio RL:\")))","v":"Reiseentschädigung RL:"}]
[null,null,null,null,null,null,null,null,null,null,null,null,null,null,null,null,null,null,null,null,null,null,null,null,null,null,null,null,null,null,null,null,null,null,null,null,null,null,null,null,"0.70"]
[]
[null,null,null,null,null,null,null,null,null,null,null,null,null,null,null,null,null,null,null,null,null,null,null,null,null,null,null,null,null,null,null,null,null,null,null,null,{"$f":"IF(Sprache=\"Deutsch\",\" X eintragen wenn Doppelspiel (ohne Cup)\",IF(Sprache=\"Français\",\" Entrez X si double jeu (sans Cup)\",IF(Sprache=\"Italiano\",\" Inserisci X se doppio gioco (senza Cup)\")))","v":" X eintragen wenn Doppelspiel (ohne Cup)"}]
[{"$f":"IF(Sprache=\"Deutsch\",\"Reiseentschädigung:\",IF(Sprache=\"Français\",\"Frais de déplacement:\",IF(Sprache=\"Italiano\",\"Indennità di viaggio:\")))","v":"Reiseentschädigung:"},null,null,null,null,null,null,null,null,null,null,null,null,null,null,null,null,null,null,null,null,null,null,null,null,null,{"$f":"IF(Cup=\"X\",\"\",IF(Sprache=\"Deutsch\",\"Doppelspiel:\",IF(Sprache=\"Français\",\"Double jeu:\",IF(Sprache=\"Italiano\",\"Doppio gioco:\"))))","v":"Doppelspiel:"},null,null,null,"1L",null,"1L",null,null,null,null,null,null,null,{"$f":"IF(Sprache=\"Deutsch\",\"Spielleitung RL\",IF(Sprache=\"Français\",\"Direction de jeu RL\",IF(Sprache=\"Italiano\",\"Gioca direzione RL\")))","v":"Spielleitung RL"}]
[{"$f":"IF(OR(Liga1=\"X\",NLA=\"X\",NLB=\"X\",LR=\"X\"),IF(Sprache=\"Deutsch\",\"Pauschale:\",IF(Sprache=\"Français\",\"Forfaits:\",IF(Sprache=\"Italiano\",\"Forfait:\"))),IF(AND(Cup=\"X\",Liga1=\"\"),\"\",\"\"))","v":""},null,null,null,null,null,null,null,null,null,null,null,null,null,null,null,null,null,null,null,null,null,null,null,null,null,null,null,null,null,"1. Spiel",null,"2. Spiel",null,null,null,{"$f":"IF(Sprache=\"Deutsch\",\" 1./2. Spiel:\n NLA / NLB / 1L / LR=Linienrichter / RL=Regionalliga\",IF(Sprache=\"Français\",\" 1./2. jeu:\n LNA / LNB / 1L / LR=Juges de ligne / RL=ligues régionale\",IF(Sprache=\"Italiano\",\" 1./2. Spiel:\n LNA / LNB / 1L / LR=Giudici di linea / RL=leghe regionali\")))","v":" 1./2. Spiel:\n NLA / NLB / 1L / LR=Linienrichter / RL=Regionalliga"},null,null,null,60]
[{"$f":"IF(Sprache=\"Deutsch\",IF(OR(Liga1=\"X\",NLB=\"X\",NLA=\"X\",LR=\"X\"),\"Distanz schnellste Route Wohnort-Spielort, gemäss Google Maps (1 Weg)\",IF(AND(Cup=\"X\",Liga1=\"\"),\"Cup ohne 1L: gem. Spesenreglement der Region\",\"Bitte NLA, NLB, 1L, LR oder CUP ausfüllen\")),IF(Sprache=\"Français\",IF(OR(Liga1=\"X\",NLB=\"X\",NLA=\"X\",LR=\"X\"),\"Chemin le plus rapide domicile - lieu du match, selon Google Maps (1 chemin)\",IF(AND(Cup=\"X\",Liga1=\"\"),\"Cup sans 1L: acc. réglementation de la région\",\"S.V.P LNA, LNB, 1L, LR ou CUP entrez\")),IF(Sprache=\"Italiano\",IF(OR(Liga1=\"X\",NLB=\"X\",NLA=\"X\",LR=\"X\"),\"Distanza percorso più rapido abitazioneluogo della partita, secondo Google Maps (1 corsa)\",IF(AND(Cup=\"X\",Liga1=\"\"),\"Cup senza 1L: per regolamenti della regione\",\"Per favore compila LNA, LNB, 1L, LR o CUP compila\")),)))","v":"Bitte NLA, NLB, 1L, LR oder CUP ausfüllen"},null,null,null,null,null,null,null,null,null,null,null,null,null,null,null,null,null,null,null,null,null,null,null,null,null,null,null,null,"Km:",null,null,null,null,null,null,null,null,null,null,50]
[{"$f":"IF(Sprache=\"Deutsch\",IF(OR(NLB=\"X\",NLA=\"X\"),\"bis 50 km = CHF 30.-- /  > 50 bis 100 km = CHF 70.-- / > 100 bis 150 km = CHF 110.-- / > 150 km = 160.--\",IF(Liga1=\"X\",\"bis 20 km = CHF 15.-- / > 20 bis 40 km = CHF 30.-- / > 40 bis 60 km = CHF 50.-- /                                                                                   > 60 bis 75 km = CHF 60.-- / > 75 km = 70.--\",IF(LR=\"X\",\"bis 20 km = CHF 15.-- / > 20 bis 40 km = CHF 30.-- / > 40 bis 60 km = CHF 50.-- / > 60 km = 60.--\",IF(AND(Cup=\"X\",Liga1=\"\"),CONCATENATE(\"Cup ohne 1L: CHF \",Spesen_RL,\" / km\"),\"\")))),IF(Sprache=\"Français\",IF(OR(NLB=\"X\",NLA=\"X\"),\"jusqu’à 50 km = CHF 30.-- /  > 50 à 100 km = CHF 70.-- / > 100 à 150 km = CHF 110.-- / > 150 km = 160.--\",IF(Liga1=\"X\",\"jusqu’à 20 km = CHF 15.-- / > 20 à 40 km = CHF 30.-- / > 40 à 60 km = CHF 50.-- /                                                                                   > 60 à 75 km = CHF 60.-- / > 75 km = 70.--\",IF(LR=\"X\",\"jusqu’à 20 km = CHF 15.-- / > 20 à 40 km = CHF 30.-- / > 40 à 60 km = CHF 50.-- / > 60 km = 60.--\",IF(AND(Cup=\"X\",Liga1=\"\"),CONCATENATE(\"Cup sans 1L: CHF \",Spesen_RL,\" / km\"),\"\")))),IF(Sprache=\"Italiano\",IF(OR(NLB=\"X\",NLA=\"X\"),\"Fino a 50 km = CHF 30.-- /  > 50 a 100 km = CHF 70.-- / > 100 a 150 km = CHF 110.-- / > 150 km = 160.--\",IF(Liga1=\"X\",\"Fino a 20 km = CHF 15.-- / > 20 a 40 km = CHF 30.-- / > 40 a 60 km = CHF 50.-- /                                                                                   > 60 a 75 km = CHF 60.-- / > 75 km = 70.--\",IF(LR=\"X\",\"Fino a 20 km = CHF 15.-- / > 20 a 40 km = CHF 30.-- / > 40 a 60 km = CHF 50.-- / > 60 km = 60.--\",IF(AND(Cup=\"X\",Liga1=\"\"),CONCATENATE(\"Cup senza 1L: CHF \",Spesen_RL,\" / km\"),\"\")))))))","v":""},null,null,null,null,null,null,null,null,null,null,null,null,null,null,null,null,null,null,null,null,null,null,null,null,null,null,null,null,"CHF",null,{"$f":"IFERROR(ROUND(IF(DOPPEL=\"\",IF(Sprache=\"Deutsch\",AP25,IF(Sprache=\"Français\",AP26,IF(Sprache=\"Italiano\",AP26,\"\"))),IF(DOPPEL=\"X\",IF(Sprache=\"Deutsch\",AQ25,IF(Sprache=\"Français\",AQ26,IF(Sprache=\"Italiano\",AQ26,\"\")))))*20,0)/20,\"\")","v":0},null,null,null,null,{"$f":"IF(Sprache=\"Deutsch\",IF(OR(Liga1=\"X\",NLB=\"X\",NLA=\"X\",LR=\"X\"),\" km eintragen (1 Weg)\",IF(AND(Cup=\"X\",Liga1=\"\"),\" km eintragen (Hin- und Rückweg)\",\"Bitte NLA, NLB, 1L, LR oder CUP ausfüllen\")),IF(Sprache=\"Français\",IF(OR(Liga1=\"X\",NLB=\"X\",NLA=\"X\",LR=\"X\"),\" Entrez km (1 chemin)\",IF(AND(Cup=\"X\",Liga1=\"\"),\" Entrez km (Aller et retour)\",\"S.V.P LNA, LNB, 1L, LR ou CUP entrez\")),IF(Sprache=\"Italiano\",IF(OR(Liga1=\"X\",NLB=\"X\",NLA=\"X\",LR=\"X\"),\" Inserisci km (solo andata)\",IF(AND(Cup=\"X\",Liga1=\"\"),\" Inserisci km (andata e ritorno)\",\"Per favore compila LNA, LNB, 1L, LR o CUP compila\")),)))","v":"Bitte NLA, NLB, 1L, LR oder CUP ausfüllen"},null,null,null,50]
[{"$f":"IF(Sprache=\"Deutsch\",\"Spielleitung\",IF(Sprache=\"Français\",\"Direction de jeu\",IF(Sprache=\"Italiano\",\"Direzione di gioco\")))","v":"Spielleitung"},null,null,null,null,null,null,{"$f":"IF(AND(NLA=\"X\",Sprache=\"Deutsch\"),\"Sa/So: CHF 200.-- / Mo-Fr: CHF 300.--\",IF(AND(NLB=\"X\",Sprache=\"Deutsch\"),\"Sa/So: CHF 140.-- / Mo-Fr: CHF 180.--\",IF(AND(OR(Liga1=\"X\",LR=\"X\"),Sprache=\"Deutsch\"),\"Mo-So: CHF 85.--\",IF(AND(NLA=\"X\",Sprache=\"Français\"),\"Sa/Di: CHF 200.-- / Lu-Ve: CHF 300.--\",IF(AND(NLB=\"X\",Sprache=\"Français\"),\"Sa/Di: CHF 140.-- / Lu-Ve: CHF 180.--\",IF(AND(OR(Liga1=\"X\",LR=\"X\"),Sprache=\"Français\"),\"Lu-Di: CHF 85.--\",IF(AND(NLA=\"X\",Sprache=\"Italiano\"),\"Sa-Do: CHF 200.-- / Lu-Ve: CHF 300.--\",IF(AND(NLB=\"X\",Sprache=\"Italiano\"),\"Sa-Do: CHF 140.-- / Lu-Ve: CHF 180.--\",IF(AND(OR(Liga1=\"X\",LR=\"X\"),Sprache=\"Italiano\"),\"Lu-Do: CHF 85.--\",\"\")))))))))","v":""},null,null,null,null,null,null,null,null,null,null,null,null,null,null,null,null,null,null,null,null,null,"CHF",null,{"$f":"IFERROR(IF(AND(NLA=\"X\",OR(WEEKDAY(D13,1)=2,WEEKDAY(D13,1)=3,WEEKDAY(D13,1)=4,WEEKDAY(D13,1)=5,WEEKDAY(D13,1)=6)),300,IF(AND(NLA=\"X\",OR(WEEKDAY(D13,1)=7,WEEKDAY(D13,1)=1)),200,IF(AND(NLB=\"X\",OR(WEEKDAY(D13,1)=2,WEEKDAY(D13,1)=3,WEEKDAY(D13,1)=4,WEEKDAY(D13,1)=5,WEEKDAY(D13,1)=6)),180,IF(AND(NLB=\"X\",OR(WEEKDAY(D13,1)=7,WEEKDAY(D13,1)=1)),140,IF(OR(Liga1=\"X\",LR=\"X\"),85,IF(AND(Cup=\"X\",OR(RL=\"2L\",RL=\"X\")),AO20,IF(AND(Cup=\"X\",RL=\"3L\"),AO21,IF(AND(Cup=\"X\",RL=\"4L\"),AO22,IF(AND(Cup=\"X\",RL=\"5L\"),AO22,\"\"))))))))),\"\")","v":""}]
[null,null,null,null,null,null,null,null,null,null,null,null,null,null,null,null,null,null,null,null,null,null,null,null,null,null,null,null,null,null,null,null,null,null,null,null,"wird noch unsichtbar gemacht, wenn alles fertig ist",null,null,null,null,"Einzelspiel","Doppelspiel"]
["TOTAL",null,null,null,null,null,null,null,null,null,null,null,null,null,null,null,null,null,null,null,null,null,null,null,null,null,null,null,null,"CHF",null,{"$f":"IF(AND(AF22<>0,OR(NLA=\"X\",NLB=\"X\",Liga1=\"X\",LR=\"X\",Cup=\"X\")),IF(AND(DOPPEL=\"X\",AND(Doppelspiel_1=Doppelspiel_2),Cup=\"\"),SUM(AF22:AH24)-AF22/2,SUM(AF22:AH24)),\"\")","v":""},null,null,null,null,"Spesen NLA/B","Spesen 1L","Spesen LR","Cup RL","DE",{"$f":"IF(OR(AND(OR(NLA=\"X\",NLB=\"X\"),DOPPEL=\"\")),Spesen_NLA_B,IF(AND(Liga1=\"X\",DOPPEL=\"\"),Spesen_1L,IF(AND(LR=\"X\",DOPPEL=\"\"),Spesen_LR,IF(OR(AND(OR(Cup=\"X\",RL<>\"\"),DOPPEL=\"\")),Spesen_Cup_RL,\"0.00\"))))","v":"0.00"},{"$f":"IF(OR(AND(NLA=\"X\",DOPPEL=\"X\",Doppelspiel_1=\"NLA\",Doppelspiel_2<>\"NLA\"),AND(NLA=\"X\",DOPPEL=\"X\",Doppelspiel_1<>\"NLA\",Doppelspiel_2=\"NLA\"),AND(NLA=\"X\",DOPPEL=\"X\",Doppelspiel_1=\"NLA\",Doppelspiel_2=\"NLA\")),Spesen_NLA_B,IF(OR(AND(NLB=\"X\",DOPPEL=\"X\",Doppelspiel_1=\"NLB\",NOT(Doppelspiel_2=\"NLA\"),NOT(Doppelspiel_2=\"NLB\")),AND(NLB=\"X\",DOPPEL=\"X\",NOT(Doppelspiel_1=\"NLA\"),NOT(Doppelspiel_1=\"NLB\"),Doppelspiel_2=\"NLB\"),AND(NLB=\"X\",DOPPEL=\"X\",Doppelspiel_1=\"NLB\",Doppelspiel_2=\"NLB\")),Spesen_NLA_B,IF(OR(AND(Liga1=\"X\",DOPPEL=\"X\",Doppelspiel_1=\"1L\",NOT(Doppelspiel_2=\"NLA\"),NOT(Doppelspiel_2=\"NLB\"),NOT(Doppelspiel_2=\"1L\"),NOT(Doppelspiel_2=\"LR\")),AND(Liga1=\"X\",DOPPEL=\"X\",NOT(Doppelspiel_1=\"NLA\"),NOT(Doppelspiel_1=\"NLB\"),NOT(Doppelspiel_1=\"1L\"),NOT(Doppelspiel_1=\"LR\"),Doppelspiel_2=\"1L\"),AND(Liga1=\"X\",DOPPEL=\"X\",Doppelspiel_1=\"1L\",Doppelspiel_2=\"1L\")),Spesen_1L,IF(OR(AND(LR=\"X\",DOPPEL=\"X\",Doppelspiel_1=\"LR\",NOT(Doppelspiel_2=\"NLA\"),NOT(Doppelspiel_2=\"NLB\"),NOT(Doppelspiel_2=\"LR\")),AND(LR=\"X\",DOPPEL=\"X\",NOT(Doppelspiel_1=\"NLA\"),NOT(Doppelspiel_1=\"NLB\"),NOT(Doppelspiel_1=\"LR\"),Doppelspiel_2=\"LR\"),AND(LR=\"X\",DOPPEL=\"X\",Doppelspiel_1=\"LR\",Doppelspiel_2=\"LR\")),Spesen_LR,IF(OR(AND(RL=\"X\",DOPPEL=\"X\",Doppelspiel_1=\"2L\",NOT(Doppelspiel_2=\"NLA\"),NOT(Doppelspiel_2=\"NLB\"),NOT(Doppelspiel_2=\"1L\"),NOT(Doppelspiel_2=\"RL\"),NOT(Doppelspiel_2=\"LR\")),AND(RL=\"X\",DOPPEL=\"X\",NOT(Doppelspiel_1=\"NLA\"),NOT(Doppelspiel_1=\"NLB\"),NOT(Doppelspiel_1=\"1L\"),NOT(Doppelspiel_1=\"2L\"),NOT(Doppelspiel_1=\"LR\"),Doppelspiel_2=\"RL\")),Spesen_Cup_RL,\"0.0\")))))","v":"0.0"}]
[{"$f":"IF(Sprache=\"Deutsch\",\"Unterschrift:\",IF(Sprache=\"Français\",\"Signature:\",IF(Sprache=\"Italiano\",\"Firma:\")))","v":"Unterschrift:"},null,null,null,null,null,null,null,null,null,null,null,null,null,null,null,null,null,null,null,null,null,null,null,null,null,null,null,"Pro Team:",null,null,{"$f":"IF(AF25=\"\",\"\",AF25/2)","v":""},null,{"$f":"AF25/2","v":{"$error":"#VALUE!"}},null,null,{"$f":"IF(OR(AND(OR(NLA=\"X\",NLB=\"X\"),Cup=\"X\"),AND(OR(NLA=\"X\",NLB=\"X\"),Cup=\"\")),IF(AND(KM>0,KM<=50),30,IF(AND(KM>50,KM<=100),70,IF(AND(KM>100,KM<=150),110,IF(AND(KM>150),160,0)))),\"\")","v":""},{"$f":"IF(OR(AND(Liga1=\"X\",Cup=\"X\"),AND(Liga1=\"X\",Cup=\"\")),IF(AND(KM>0,KM<=20),15,IF(AND(KM>20,KM<=40),30,IF(AND(KM>40,KM<=60),50,IF(AND(KM>60,KM<=75),60,IF(AND(KM>75),70,0))))),\"\")","v":""},{"$f":"IF(OR(AND(LR=\"X\",Cup=\"X\"),AND(LR=\"X\",Cup=\"\")),IF(AND(KM>0,KM<=20),15,IF(AND(KM>20,KM<=40),30,IF(AND(KM>40,KM<=60),50,IF(AND(KM>60),60,0)))),\"\")","v":""},{"$f":"IF(AND(AC16<>\"\",Cup=\"X\"),KM*Spesen_RL,\"\")","v":""},"FR / IT",{"$f":"AP25","v":"0.00"},{"$f":"IF(OR(AND(NLA=\"X\",DOPPEL=\"X\",Doppelspiel_1=\"LNA\",Doppelspiel_2<>\"LNA\"),AND(NLA=\"X\",DOPPEL=\"X\",Doppelspiel_1<>\"LNA\",Doppelspiel_2=\"LNA\"),AND(NLA=\"X\",DOPPEL=\"X\",Doppelspiel_1=\"LNA\",Doppelspiel_2=\"LNA\")),Spesen_NLA_B,IF(OR(AND(NLB=\"X\",DOPPEL=\"X\",Doppelspiel_1=\"LNB\",NOT(Doppelspiel_2=\"LNA\"),NOT(Doppelspiel_2=\"LNB\")),AND(NLB=\"X\",DOPPEL=\"X\",NOT(Doppelspiel_1=\"LNA\"),NOT(Doppelspiel_1=\"LNB\"),Doppelspiel_2=\"LNB\"),AND(NLB=\"X\",DOPPEL=\"X\",Doppelspiel_1=\"LNB\",Doppelspiel_2=\"LNB\")),Spesen_NLA_B,IF(OR(AND(Liga1=\"X\",DOPPEL=\"X\",Doppelspiel_1=\"1L\",NOT(Doppelspiel_2=\"LNA\"),NOT(Doppelspiel_2=\"LNB\"),NOT(Doppelspiel_2=\"1L\"),NOT(Doppelspiel_2=\"LR\")),AND(Liga1=\"X\",DOPPEL=\"X\",NOT(Doppelspiel_1=\"LNA\"),NOT(Doppelspiel_1=\"LNB\"),NOT(Doppelspiel_1=\"1L\"),NOT(Doppelspiel_1=\"LR\"),Doppelspiel_2=\"1L\"),AND(Liga1=\"X\",DOPPEL=\"X\",Doppelspiel_1=\"1L\",Doppelspiel_2=\"1L\")),Spesen_1L,IF(OR(AND(LR=\"X\",DOPPEL=\"X\",Doppelspiel_1=\"LR\",NOT(Doppelspiel_2=\"LNA\"),NOT(Doppelspiel_2=\"LNB\"),NOT(Doppelspiel_2=\"LR\")),AND(LR=\"X\",DOPPEL=\"X\",NOT(Doppelspiel_1=\"LNA\"),NOT(Doppelspiel_1=\"LNB\"),NOT(Doppelspiel_1=\"LR\"),Doppelspiel_2=\"LR\"),AND(LR=\"X\",DOPPEL=\"X\",Doppelspiel_1=\"LR\",Doppelspiel_2=\"LR\")),Spesen_LR,IF(OR(AND(RL=\"X\",DOPPEL=\"X\",Doppelspiel_1=\"2L\",NOT(Doppelspiel_2=\"LNA\"),NOT(Doppelspiel_2=\"LNB\"),NOT(Doppelspiel_2=\"1L\"),NOT(Doppelspiel_2=\"RL\"),NOT(Doppelspiel_2=\"LR\")),AND(RL=\"X\",DOPPEL=\"X\",NOT(Doppelspiel_1=\"LNA\"),NOT(Doppelspiel_1=\"LNB\"),NOT(Doppelspiel_1=\"1L\"),NOT(Doppelspiel_1=\"2L\"),NOT(Doppelspiel_1=\"LR\"),Doppelspiel_2=\"RL\")),Spesen_Cup_RL,\"0.0\")))))","v":"0.0"}]
[]
[]
[null,null,null,null,null,null,null,null,null,null,null,null,null,null,null,null,null,null,null,{"$f":"T1","v":"SCHIEDSRICHTERSPESEN    gemäss VR"}]
[]
[null,null,null,null,null,null,null,null,null,null,null,null,null,null,null,null,null,null,null,{"$f":"T3","v":"Schiedsrichter 1L &  Swiss Cup"}]
[]
[]
[]
[{"$f":"$A$7","v":"Name und Vorname:"},null,null,null,null,null,null,null,null,null,null,null,{"$f":"$M$7","v":0}]
[]
[{"$f":"$A$9","v":"Strasse und Nr.:"},null,null,null,null,null,null,null,null,null,null,null,{"$f":"$M$9","v":""}]
[]
[{"$f":"$A$11","v":"PLZ:"},null,null,{"$f":"$D$11","v":""},null,null,null,null,{"$f":"$I$11","v":"Ort:"},{"$f":"I11","v":"Ort:"},null,null,{"$f":"$M$11","v":""}]
[]
[{"$f":"$A$13","v":"Datum:"},null,null,{"$f":"$D$13","v":"00:00:00"},null,null,null,null,null,null,{"$f":"$K$13","v":"Halle:"},null,{"$f":"$M$13","v":0},null,null,null,null,null,null,null,null,null,null,null,null,null,null,null,null,null,null,{"$f":"$AF$13","v":"00:00:00"}]
[]
[{"$f":"$A$15","v":"Spiel:"},null,null,{"$f":"$D$15","v":0},null,null,null,null,null,null,null,null,"-",{"$f":"$N$15","v":0},null,null,null,null,null,null,null,null,null,{"$f":"$X$15","v":"NLA"},{"$f":"$Y$15","v":"NLB"},{"$f":"$Z$15","v":"1L"},{"$f":"$AA$15","v":"LR"},{"$f":"$AB$15","v":"Cup"},{"$f":"$AC$15","v":"RL"},{"$f":"$AD$15","v":"Spiel-#:"},null,{"$f":"$AF$15","v":0}]
[null,null,null,null,null,null,null,null,null,null,null,null,null,null,null,null,null,null,null,null,null,null,null,{"$f":"$X$16","v":0},{"$f":"$Y$16","v":0},{"$f":"$Z$16","v":0},{"$f":"$AA$16","v":0},{"$f":"$AB$16","v":0},{"$f":"$AC$16","v":0}]
[]
[]
[{"$f":"$A$19","v":"Reiseentschädigung:"},null,null,null,null,null,null,null,null,null,null,null,null,null,null,null,null,null,null,null,null,null,null,null,null,null,{"$f":"$AA$19","v":"Doppelspiel:"},{"$f":"AB19","v":0},{"$f":"AC19","v":0},{"$f":"$AD$19","v":0},{"$f":"$AE$19","v":"1L"},null,{"$f":"$AG$19","v":"1L"}]
[{"$f":"$A$20","v":""},null,null,null,null,null,null,null,null,null,null,null,null,null,null,null,null,null,null,null,null,null,null,null,null,null,null,null,null,{"$f":"AD20","v":0},"1. Spiel",0,"2. Spiel",0]
[{"$f":"$A$21","v":"Bitte NLA, NLB, 1L, LR oder CUP ausfüllen"},null,null,null,null,null,null,null,null,null,null,null,null,null,null,null,null,null,null,null,null,null,null,null,null,null,null,null,null,{"$f":"$AD$21","v":"Km:"},null,{"$f":"KM","v":0}]
[{"$f":"$A$22","v":""},null,null,null,null,null,null,null,null,null,null,null,null,null,null,null,null,null,null,null,null,null,null,null,null,null,null,null,null,{"$f":"$AD$22","v":"CHF"},null,{"$f":"$AF$22","v":0}]
[{"$f":"$A$23","v":"Spielleitung"},null,null,null,null,{"$f":"$F$23","v":0},null,{"$f":"$H$23","v":""},null,null,null,null,null,null,null,null,null,null,null,null,null,null,null,null,null,null,null,null,null,{"$f":"$AD$23","v":"CHF"},null,{"$f":"$AF$23","v":""}]
[]
["TOTAL",null,null,null,null,null,null,null,null,null,null,null,null,null,null,null,null,null,null,null,null,null,null,null,null,null,null,null,null,{"$f":"$AD$25","v":"CHF"},null,{"$f":"$AF$25","v":""}]
[{"$f":"A26","v":"Unterschrift:"},null,null,null,null,null,null,null,null,null,null,null,null,null,null,null,null,null,null,null,null,null,null,null,null,null,null,null,{"$f":"$AC$26","v":"Pro Team:"},null,null,{"$f":"$AF$26","v":""}]

{"sheet":"Doppelspiele","index":1,"n_rows":0,"n_cols":0,"rows_kept":0,"cut":false,"hidden":false,"merged":[]}

{"sheet":"HallenlisteSVRBESO","index":2,"n_rows":186,"n_cols":8,"rows_kept":186,"cut":false,"hidden":true,"merged":[]}
["Hallen","Halle #","Hallenname","H: Strasse","H: Hausnummer","H: PLZ","H: Ort","H: Region"]
[null," "," "," "," "," "," ","SVRBESO"]
[{"$f":"CONCATENATE(G3,\", \",C3)","v":"Aarberg, Aarolina"},1170,"Aarolina","Bürenstrasse",8,3270,"Aarberg","SVRBESO"]
["Aarberg, Sporthalle AARfit 1",1918,"Sporthalle AARfit 1","Aareweg",32,3270,"Aarberg","SVRBESO"]
["Aarberg, Sporthalle AARfit 2",2250,"Sporthalle AARfit 2","Aareweg ",32,3270,"Aarberg","SVRBESO"]
["Aarberg, Sporthalle AARfit 3",2249,"Sporthalle AARfit 3","Aareweg ",32,3270,"Aarberg","SVRBESO"]
["Aegerten, Mehrzweckhalle",1823,"Mehrzweckhalle","Mattenstrasse",16,2558,"Aegerten","SVRBESO"]
["Aeschi SO, Mehrzweckhalle",7,"Mehrzweckhalle","Schulhausstrasse",10,4556,"Aeschi SO","SVRBESO"]
["Aetigkofen, Turnhalle",1153,"Turnhalle","Schulgässli",6,4583,"Aetigkofen","SVRBESO"]
["Altbüron, MZH Hiltbrunnen",1415,"MZH Hiltbrunnen","Hiltbrunnen",17,6147,"Altbüron","SVRBESO"]
["Bern, Muristalden, alt",2024,"Muristalden, alt","Muristrasse ","8c",3006,"Bern","SVRBESO"]
["Bern, Bethlehemacker",272,"Bethlehemacker","Kornweg",109,3027,"Bern","SVRBESO"]
["Bern, Campus Muristalden (kleine Halle)",1686,"Campus Muristalden (kleine Halle)","Muristrasse","8c",3006,"Bern","SVRBESO"]
["Bern, Französische Schule ECLF",1618,"Französische Schule ECLF","Jupiterstrasse",2,3015,"Bern","SVRBESO"]
["Bern, Matte",157,"Matte","Schifflaube ",1,3011,"Bern","SVRBESO"]
["Bern, Muesmatt",1718,"Muesmatt","Gertrud-Woker-Strasse",5,3012,"Bern","SVRBESO"]
["Bern, Schönau",1172,"Schönau","Lindenauweg",1,3007,"Bern","SVRBESO"]
["Bern, Schwellenmätteli",26,"Schwellenmätteli","Schwellenmattstrasse ",1,3005,"Bern","SVRBESO"]
["Bern, Seminar Muristalden=neu Campus Muristalden",270,"Seminar Muristalden=neu Campus Muristalden","Muristrasse","8c",3006,"Bern","SVRBESO"]
["Bern, Sporthalle Weissenstein",1854,"Sporthalle Weissenstein","Könizstrasse",111,3008,"Bern","SVRBESO"]
["Bern, Sporthalle ZSSW 1",2236,"Sporthalle ZSSW 1","Bremgartenstrasse",145,3012,"Bern","SVRBESO"]
["Bern, Sporthalle ZSSW 2",2237,"Sporthalle ZSSW 2","Bremgartenstrasse",145,3012,"Bern","SVRBESO"]
["Bern, Sporthalle ZSSW 3",2238,"Sporthalle ZSSW 3","Bremgartenstrasse",145,3012,"Bern","SVRBESO"]
["Bern, Sporthalle ZSSW 4",2239,"Sporthalle ZSSW 4","Bremgartenstrasse",145,3012,"Bern","SVRBESO"]
["Bern, Sporthalle ZSSW 5",2240,"Sporthalle ZSSW 5","Bremgartenstrasse",145,3012,"Bern","SVRBESO"]
["Bern, Turnhalle Gymnasium Neufeld 1+3",1731,"Turnhalle Gymnasium Neufeld 1+3","Bremgartenstrasse ",133,3012,"Bern","SVRBESO"]
["Bern, Wittigkofen",1959,"Wittigkofen","Jupiterstrasse",35,3015,"Bern","SVRBESO"]
["Brienz, Kienholz",1190,"Kienholz","Lauenenstrasse",20,3855,"Brienz","SVRBESO"]
["Büetigen, Lindenhalle",1906,"Lindenhalle","Schulhausweg",11,3263,"Büetigen","SVRBESO"]
["Burgdorf, Gsteig",2016,"Gsteig","Jungfraustrasse",27,3400,"Burgdorf","SVRBESO"]
["Burgdorf, Gsteighof",2017,"Gsteighof","Pestalozzistrasse ",69,3400,"Burgdorf","SVRBESO"]
["Burgdorf, Lindenfeld",277,"Lindenfeld","Zähringerstrasse",37,3400,"Burgdorf","SVRBESO"]
["Burgdorf, Lindenfeld 2",2251,"Lindenfeld 2","Zähringerstrasse ",37,3400,"Burgdorf","SVRBESO"]
["Burgdorf, Lindenfeld 3",2255,"Lindenfeld 3","Zähringerstrasse",37,3400,"Burgdorf","SVRBESO"]
["Burgdorf, Schützenmatt alt 1",276,"Schützenmatt alt 1","Sägegasse",13,3400,"Burgdorf","SVRBESO"]
["Burgdorf, Schützenmatt alt 2",2252,"Schützenmatt alt 2","Sägegasse",13,3400,"Burgdorf","SVRBESO"]
[{"$f":"CONCATENATE(G37,\", \",C37)","v":"Burgdorf, Schützenmatt alt 3"},2253,"Schützenmatt alt 3","Sägegasse",13,3400,"Burgdorf","SVRBESO"]
["Burgdorf, Schützenmatt neu",1767,"Schützenmatt neu","Sägegasse",13,3400,"Burgdorf","SVRBESO"]
[{"$f":"CONCATENATE(G39,\", \",C39)","v":"Burgdorf, Schützenmann neu 2"},2254,"Schützenmann neu 2","Sägegasse",13,3400,"Burgdorf","SVRBESO"]
[{"$f":"CONCATENATE(G40,\", \",C40)","v":"Burgdorf, Schützenmann neu 3"},2256,"Schützenmann neu 3","Sägegasse",13,3400,"Burgdorf","SVRBESO"]
["Bützberg, Bützberg MZH",1949,"Bützberg MZH","Sonnhaldestrasse",25,4922,"Bützberg","SVRBESO"]
["Deitingen, Zweienhalle",802,"Zweienhalle","Schulhausstrasse",9,4543,"Deitingen","SVRBESO"]
[{"$f":"CONCATENATE(G43,\", \",C43)","v":"Deitingen, Zweienhalle 2"},2317,"Zweienhalle 2","Schulhausstrasse",9,4543,"Deitingen","SVRBESO"]
["Derendingen, OZ DELU",2089,"OZ DELU","Schöllerstrasse",1,4552,"Derendingen","SVRBESO"]
["Dürrenroth, Chipfhalle",1944,"Chipfhalle","Dorfstrasse",34,3465,"Dürrenroth","SVRBESO"]
["Erlenbach im Simmental, Sek. Erlenbach",1933,"Sek. Erlenbach","Sekundarschulhaus","359 B",3762,"Erlenbach im Simmental","SVRBESO"]
["Etziken, Mehrzweckhalle",296,"Mehrzweckhalle","Bünackerweg",9,4554,"Etziken","SVRBESO"]
["Frutigen, Sporthalle OSS",2008,"Sporthalle OSS","Baumgärtliweg",10,3714,"Frutigen","SVRBESO"]
["Frutigen, Sporthalle Widi",1424,"Sporthalle Widi","Untere Bahnhofstrasse",7,3714,"Frutigen","SVRBESO"]
["Gerlafingen, Gländ",298,"Gländ","Schulhausstrasse",24,4563,"Gerlafingen","SVRBESO"]
["Gerlafingen, Kirchacker",66,"Kirchacker","Kriegstettenstrasse",60,4563,"Gerlafingen","SVRBESO"]
["Gondiswil, MZH Gondiswil",552,"MZH Gondiswil","Steingasse",51,4955,"Gondiswil","SVRBESO"]
["Grenchen, DH Zentrum (Nord/Süd)",1407,"DH Zentrum (Nord/Süd)","Schulstrasse",11,2540,"Grenchen","SVRBESO"]
["Grosshöchstetten, Alpenweg",1946,"Alpenweg","Alpenweg",1,3506,"Grosshöchstetten","SVRBESO"]
["Grünenmatt, Turnhalle",1963,"Turnhalle","Trachselwaldstrasse",44,3452,"Grünenmatt","SVRBESO"]
["Gurzelen, Mehrzweckgebäude",510,"Mehrzweckgebäude","Neuweg",124,3663,"Gurzelen","SVRBESO"]
["Hägendorf, Oberdorf",2132,"Oberdorf","Eigasse",20,4614,"Hägendorf","SVRBESO"]
["Hägendorf, Raiffeisen Arena",2161,"Raiffeisen Arena","Gäustrasse",10,4614,"Hägendorf","SVRBESO"]
["Hägendorf, Thalacker",2131,"Thalacker","Thalackerweg",7,4614,"Hägendorf","SVRBESO"]
["Halten, Mehrzweckhalle",1369,"Mehrzweckhalle","Dorfstrasse",7,4566,"Halten","SVRBESO"]
["Heinrichswil-Winistorf, MZH 3 Höfe",6,"MZH 3 Höfe","Hersiwilstrasse",27,4558,"Heinrichswil-Winistorf","SVRBESO"]
["Herbetswil, Turnhalle",300,"Turnhalle","Schulhausstrasse",199,4715,"Herbetswil","SVRBESO"]
["Herbligen, Primarschule",1976,"Primarschule","Dorfstrasse",8,3671,"Herbligen","SVRBESO"]
["Herzogenbuchsee, Sekhalle",1948,"Sekhalle","Oberdorfweg",7,3360,"Herzogenbuchsee","SVRBESO"]
["Herzogenbuchsee, Mittelholz 1",1677,"Mittelholz 1","Mittelholzstrasse",2,3360,"Herzogenbuchsee","SVRBESO"]
[{"$f":"CONCATENATE(G66,\", \",C66)","v":"Herzogenbuchsee, Mittelholz 2"},2313,"Mittelholz 2","Mittelholzstrasse",2,3360,"Herzogenbuchsee","SVRBESO"]
[{"$f":"CONCATENATE(G67,\", \",C67)","v":"Herzogenbuchsee, Mittelholz 3"},2314,"Mittelholz 3","Mittelholzstrasse",2,3360,"Herzogenbuchsee","SVRBESO"]
["Huttwil, Dornacker",2162,"Dornacker","Dornackerweg",2,4950,"Huttwil","SVRBESO"]
["Innertkirchen, MZH Innertkirchen",2003,"MZH Innertkirchen","Grundeystrasse",23,3862,"Innertkirchen","SVRBESO"]
["Ins, Sporthalle Rötschmatte",2217,"Sporthalle Rötschmatte","Rötschmattenweg",25,3232,"Ins","SVRBESO"]
["Interlaken, BZI, 1",2001,"BZI, 1","Obere Bönigstrasse",21,3800,"Interlaken","SVRBESO"]
[{"$f":"CONCATENATE(G72,\", \",C72)","v":"Interlaken, BZI, 3"},2257,"BZI, 3","Obere Bönigstrasse ",21,3800,"Interlaken","SVRBESO"]
["Interlaken, Lindenallee",1837,"Lindenallee","Lindenallee",5,3800,"Interlaken","SVRBESO"]
["Iseltwald, Schulhaus",2020,"Schulhaus","Matte","31A",3807,"Iseltwald","SVRBESO"]
["Ittigen, Altikofen, 1",1817,"Altikofen, 1","Fischrainweg",17,3048,"Ittigen","SVRBESO"]
["Ittigen, Altikofen, 2",1770,"Altikofen, 2","Fischrainweg",17,3048,"Ittigen","SVRBESO"]
["Ittigen, Rain",1272,"Rain","Rain",17,3063,"Ittigen","SVRBESO"]
["Kappel, Bornblick",1271,"Bornblick","Schulhausstrasse",3,4616,"Kappel","SVRBESO"]
["Kehrsatz, Selhofen",1981,"Selhofen","Selhofen",21,3122,"Kehrsatz","SVRBESO"]
["Kestenholz, Mehrzweckhalle",1173,"Mehrzweckhalle","Gäustrasse",33,4703,"Kestenholz","SVRBESO"]
["Köniz, Buchsee",279,"Buchsee","Lilienweg",15,3098,"Köniz","SVRBESO"]
["Köniz, Morillon Schulhaus",1626,"Morillon Schulhaus","Kirchstrasse",169,3084,"Köniz","SVRBESO"]
["Köniz, Oberstufenzentrum, 1",29,"Oberstufenzentrum, 1","Schwarzenburgstrasse",321,3098,"Köniz","SVRBESO"]
["Köniz, Oberstufenzentrum, 2",2258,"Oberstufenzentrum, 2","Schwarzenburgstrasse",321,3098,"Köniz","SVRBESO"]
["Köniz, Oberstufenzentrum, 3",2259,"Oberstufenzentrum, 3","Schwarzenburgstrasse",321,3098,"Köniz","SVRBESO"]
[{"$f":"CONCATENATE(G86,\", \",C86)","v":"Köniz, Oberstufenzentrum, 4"},2297,"Oberstufenzentrum, 4","Schwarzenburgstrasse",321,3098,"Köniz","SVRBESO"]
[{"$f":"CONCATENATE(G87,\", \",C87)","v":"Köniz, Turnhalle Lerbermatte TH1"},2300,"Turnhalle Lerbermatte TH1","Kirchstrasse",78,3098,"Köniz","SVRBESO"]
["Köniz, Turnhalle Lerbermatte TH2",2301,"Turnhalle Lerbermatte TH2","Kirchstrasse",78,3098,"Köniz","SVRBESO"]
["Köniz, Turnhalle Lerbermatte TH4",1664,"Turnhalle Lerbermatte TH4","Kirchstrasse",78,3098,"Köniz","SVRBESO"]
["Köniz, Turnhalle Lerbermatte TH5",1665,"Turnhalle Lerbermatte TH5","Kirchstrasse",78,3098,"Köniz","SVRBESO"]
["Konolfingen, Stockhorn",1912,"Stockhorn","Stockhornstrasse ",8,3510,"Konolfingen","SVRBESO"]
["Langenthal, Gymer 1",79,"Gymer 1","Weststrasse ",29,4900,"Langenthal","SVRBESO"]
["Langenthal, Gymer 2 ",2218,"Gymer 2 ","Weststrasse  ","29/33  ",4900,"Langenthal","SVRBESO"]
["Langenthal, Hard 1",302,"Hard 1","Weststrasse ",33,4900,"Langenthal","SVRBESO"]
["Langenthal, Hard 2",2230,"Hard 2","Weststrasse ",33,4900,"Langenthal","SVRBESO"]
["Langenthal, Hard 3",2232,"Hard 3","Weststrasse",33,4900,"Langenthal","SVRBESO"]
["Langenthal, Turnhalle HPS",1663,"Turnhalle HPS","Schorenstrasse",19,4900,"Langenthal","SVRBESO"]
["Langnau im Emmental, Berufsschule",1277,"Berufsschule","Bleicheweg",11,3550,"Langnau im Emmental","SVRBESO"]
["Langnau im Emmental, Oberfeld 1",1931,"Oberfeld 1","Oberfeldstrasse ",15,3550,"Langnau im Emmental","SVRBESO"]
[{"$f":"CONCATENATE(G100,\", \",C100)","v":"Langnau im Emmental, Oberfeld 2"},2265,"Oberfeld 2","Oberfeldstrasse ",15,3550,"Langnau im Emmental","SVRBESO"]
["Langnau im Emmental, Oberfeld 3",2266,"Oberfeld 3","Oberfeldstrasse ",15,3550,"Langnau im Emmental","SVRBESO"]
["Latterbach, Turnhalle Latterbach",1934,"Turnhalle Latterbach","Schulhaus",557,3758,"Latterbach","SVRBESO"]
["Lengnau, Kleinfeld",1503,"Kleinfeld","Simon-Gfellerweg ",5,2543,"Lengnau","SVRBESO"]
["Liebefeld, Hessgut",1674,"Hessgut","Jägerweg",19,3097,"Liebefeld","SVRBESO"]
["Liebefeld-Köniz, Lerbermatte",76,"Lerbermatte","Kirchstrasse",70,3097,"Liebefeld-Köniz","SVRBESO"]
["Luterbach, Turnhalle",1619,"Turnhalle","Turnhallestrasse",2,4542,"Luterbach","SVRBESO"]
["Lüterkofen, MZH Eyacker",1154,"MZH Eyacker","Friedhofweg",3,4571,"Lüterkofen","SVRBESO"]
["Lützelflüh, MZH",1962,"MZH","Schachenweg",6,3432,"Lützelflüh","SVRBESO"]
["Lyss, Sporthalle Grentschel",1486,"Sporthalle Grentschel","Grentschelstrasse",3,3250,"Lyss","SVRBESO"]
["Matten bei Interlaken, Moos",1932,"Moos","Kupfergasse",41,3800,"Matten bei Interlaken","SVRBESO"]
["Matzendorf, Sporthalle",2077,"Sporthalle","Gartenstrasse",2,4713,"Matzendorf","SVRBESO"]
["Münchenbuchsee, Hofwil",96,"Hofwil","Hofwilstrasse",65,3053,"Münchenbuchsee","SVRBESO"]
["Münchenbuchsee, Pädagogisches Zentrum Münchenbuchsee",2280,"Pädagogisches Zentrum Münchenbuchsee","Klosterweg",7,3053,"Münchenbuchsee","SVRBESO"]
["Münchenbuchsee, Sekundarschule Münchenbuchsee 1",97,"Sekundarschule Münchenbuchsee 1","Höheweg",30,3053,"Münchenbuchsee","SVRBESO"]
["Münchenbuchsee, Sekundarschule Münchenbuchsee 2",2215,"Sekundarschule Münchenbuchsee 2","Quellenweg",6,3053,"Münchenbuchsee","SVRBESO"]
["Münchenbuchsee, Sekundarschule Münchenbuchsee 3",2216,"Sekundarschule Münchenbuchsee 3","Quellenweg",6,3053,"Münchenbuchsee","SVRBESO"]
[{"$f":"CONCATENATE(G117,\", \",C117)","v":"Münchenbuchsee, Sekundarschule Münchenbuchsee 1,2,3"},2229,"Sekundarschule Münchenbuchsee 1,2,3","Quellenweg",6,3053,"Münchenbuchsee","SVRBESO"]
["Münsingen, Rebacker 1",281,"Rebacker 1","Turnhallenweg",8,3110,"Münsingen","SVRBESO"]
["Münsingen, Sporthalle Schlossmatt 1",2225,"Sporthalle Schlossmatt 1","Schlossmattstrasse",2,3110,"Münsingen","SVRBESO"]
["Münsingen, Sporthalle Schlossmatt 2",98,"Sporthalle Schlossmatt 2","Schlossmattstrasse ",2,3110,"Münsingen","SVRBESO"]
["Münsingen, Sporthalle Schlossmatt 3",2226,"Sporthalle Schlossmatt 3","Schlossmattstrasse",2,3110,"Münsingen","SVRBESO"]
["Münsingen, Turnhalle Schlossmatt",1930,"Turnhalle Schlossmatt","Schlossmattstrasse",2,3110,"Münsingen","SVRBESO"]
["Münsingen, Turnhalle Schlossmatt Süd",2227,"Turnhalle Schlossmatt Süd","Schlossmattstrasse",2,3110,"Münsingen","SVRBESO"]
["Muri bei Bern, ISB ( international School of Bern), 1",2043,"ISB ( international School of Bern), 1","Allmendingenweg",9,3073,"Muri bei Bern","SVRBESO"]
["Muri bei Bern, ISB ( international School of Bern), 2",2248,"ISB ( international School of Bern), 2","Allmendingenweg",9,3073,"Muri bei Bern","SVRBESO"]
["Neuendorf, Mehrzweckhalle",2233,"Mehrzweckhalle","Chäsiweg",20,4623,"Neuendorf","SVRBESO"]
["Oberbipp, Mehrzweckhalle",2138,"Mehrzweckhalle","Wiedlisbachstrasse","5A",4538,"Oberbipp","SVRBESO"]
["Oberdiessbach, Primarschule",114,"Primarschule","Schulhausstrasse",20,3672,"Oberdiessbach","SVRBESO"]
["Oberdiessbach, Sekundarschule",1977,"Sekundarschule","Kirchbühlstrasse",30,3672,"Oberdiessbach","SVRBESO"]
["Obersteckholz, MZH",2182,"MZH","Schulhaus",43,4924,"Obersteckholz","SVRBESO"]
["Oensingen, Oberdorf, Doppelhalle",307,"Oberdorf, Doppelhalle","Buttenstrasse",8,4702,"Oensingen","SVRBESO"]
["Oensingen, Kreisschule Bechburg",308,"Kreisschule Bechburg","Jurastrasse",10,4702,"Oensingen","SVRBESO"]
[{"$f":"CONCATENATE(G133,\", \",C133)","v":"Oensingen, Sportzentrum Bechburg"},1916,"Sportzentrum Bechburg","Jurastrasse",12,4702,"Oensingen","SVRBESO"]
["Ortschwaben, Ortschwaben",1724,"Ortschwaben","Kirchlindachstrasse",7,3042,"Ortschwaben","SVRBESO"]
["Radelfingen, Radelfingen",1690,"Radelfingen","Eggenweg",5,3271,"Radelfingen","SVRBESO"]
["Riggisberg, Turnhalle neu",1726,"Turnhalle neu","Lindengässli",19,3132,"Riggisberg","SVRBESO"]
["Rüdtligen-Alchenflüh, Schulhaus",283,"Schulhaus","Dammweg",9,3422,"Rüdtligen-Alchenflüh","SVRBESO"]
["Rüttenen, Neue Turnhalle",2223,"Neue Turnhalle","Hauptstrasse",78,4522,"Rüttenen","SVRBESO"]
["Schönried, Turnhalle",1940,"Turnhalle","Hubelstrasse",1,3778,"Schönried","SVRBESO"]
["Schwadernau, MZH",2000,"MZH","Schulstrasse",17,2556,"Schwadernau","SVRBESO"]
["Schwarzenbach, Turnhalle Schwarzenbach",1713,"Turnhalle Schwarzenbach","Neuhausstrasse",15,4953,"Schwarzenbach","SVRBESO"]
["Schwarzenburg, Turnhalle Einschlag",1494,"Turnhalle Einschlag","Einschlag",21,3150,"Schwarzenburg","SVRBESO"]
[{"$f":"CONCATENATE(G143,\", \",C143)","v":"Schwarzenburg, Turnhalle Thunstrasse"},1501,"Turnhalle Thunstrasse","Thunstrasse",28,3150,"Schwarzenburg","SVRBESO"]
["Seftigen, Raiffaisen Arena 1fach Halle",2083,"Raiffaisen Arena 1fach Halle","Telmaweg",1,3662,"Seftigen","SVRBESO"]
["Seftigen, Raiffaisen Arena 2fach Halle",1929,"Raiffaisen Arena 2fach Halle","Telmaweg",1,3662,"Seftigen","SVRBESO"]
["Solothurn, Baseltor",314,"Baseltor","Werkhofstrasse",52,4500,"Solothurn","SVRBESO"]
["Solothurn, Hermesbühl OG",2246,"Hermesbühl OG","Schulhausstrasse",5,4500,"Solothurn","SVRBESO"]
[{"$f":"CONCATENATE(G148,\", \",C148)","v":"Solothurn, Hermesbühl UG"},2312,"Hermesbühl UG","Schulhausstrasse",5,4500,"Solothurn","SVRBESO"]
["Solothurn, Kantonsschule Solothurn, A001",2160,"Kantonsschule Solothurn, A001","Herrenweg",18,4500,"Solothurn","SVRBESO"]
["Solothurn, PH (Ost)",313,"PH (Ost)","Obere Sternengasse",7,4500,"Solothurn","SVRBESO"]
["Solothurn, PH (West)",316,"PH (West)","Obere Sternengasse",7,4500,"Solothurn","SVRBESO"]
["Solothurn, Turnhalle Vorstadt",2242,"Turnhalle Vorstadt","Hilariweg",11,4500,"Solothurn","SVRBESO"]
["Spiegel bei Bern, Turnhalle Spiegel",1950,"Turnhalle Spiegel","Spiegelstrasse",81,3095,"Spiegel bei Bern","SVRBESO"]
["Spiez, Dürrenbühl",284,"Dürrenbühl","Dürrenbühlweg",19,3700,"Spiez","SVRBESO"]
["Spiez, MZH AC-Zentrum",131,"MZH AC-Zentrum","Austrasse","1a",3700,"Spiez","SVRBESO"]
["Spiez, Seematte",286,"Seematte","Asylstrasse",5,3700,"Spiez","SVRBESO"]
["Spiez, Spiezwiler",143,"Spiezwiler","Faulenbachweg",85,3700,"Spiez","SVRBESO"]
["St. Stephan, MZH St. Stephan",1939,"MZH St. Stephan","Lenkstrasse",97,3772,"St. Stephan","SVRBESO"]
["Steffisburg, Musterplatz",1611,"Musterplatz","Zulgstrasse",32,3612,"Steffisburg","SVRBESO"]
["Studen, MZH Studen",1942,"MZH Studen","Längackerweg",13,2557,"Studen","SVRBESO"]
["Subingen, MZH",2048,"MZH","Sportplatzstrasse",17,4553,"Subingen","SVRBESO"]
["Subingen, OZ 13",1672,"OZ 13","Horriwilstrasse",33,4553,"Subingen","SVRBESO"]
["Subingen, Turnhalle",2049,"Turnhalle","Schulhausstrasse",4,4553,"Subingen","SVRBESO"]
["Sumiswald, Turnhalle Sumiswald",2081,"Turnhalle Sumiswald","Turnhallenstrasse",13,3454,"Sumiswald","SVRBESO"]
["Thörigen, MZH",1975,"MZH","Gässli",3,3367,"Thörigen","SVRBESO"]
["Thun, Dürrenast",1239,"Dürrenast","Schulstrasse",43,3604,"Thun","SVRBESO"]
["Thun, Gym. Seefeld",1947,"Gym. Seefeld","Aeussere Ringstrasse",7,3600,"Thun","SVRBESO"]
["Thun, Pestalozzi",132,"Pestalozzi","Stockhornstrasse",23,3600,"Thun","SVRBESO"]
["Thun, Sporthalle Schadau",1673,"Sporthalle Schadau","Marienstrasse",34,3604,"Thun","SVRBESO"]
["Thun, Sporthalle Schadau 1",2219,"Sporthalle Schadau 1","Marienstrasse",34,3604,"Thun","SVRBESO"]
["Thun, Sporthalle Schadau 2",2220,"Sporthalle Schadau 2","Marienstrasse",34,3604,"Thun","SVRBESO"]
["Thun, Sporthalle Schadau 3",2221,"Sporthalle Schadau 3","Marienstrasse",34,3604,"Thun","SVRBESO"]
["Toffen, Sporthalle Matte",1982,"Sporthalle Matte","Kanalweg",16,3125,"Toffen","SVRBESO"]
["Uettligen, Neue Halle",1489,"Neue Halle","Schülerweg",14,3043,"Uettligen","SVRBESO"]
["Unterseen, Steindler West",1725,"Steindler West","Steindlerstrasse",3,3800,"Unterseen","SVRBESO"]
["Utzenstorf, Mehrzweckhalle",1687,"Mehrzweckhalle","Gotthelfstrasse",15,3427,"Utzenstorf","SVRBESO"]
["Wangen an der Aare, Salzhaus",801,"Salzhaus","Weihergasse",10,3380,"Wangen an der Aare","SVRBESO"]
["Wangenried, Mehrzweckhalle",1183,"Mehrzweckhalle","Waldeckweg",7,3374,"Wangenried","SVRBESO"]
["Wasen im Emmental, Turnhalle",1985,"Turnhalle","Oeleweg",9,3457,"Wasen im Emmental","SVRBESO"]
["Welschenrohr, MZH Dünnenhof",295,"MZH Dünnenhof","Balmbergstrasse ",132,4716,"Welschenrohr","SVRBESO"]
["Wolfwil SO, Mehrzweckhalle",1157,"Mehrzweckhalle","Schulstrasse",4,4628,"Wolfwil SO","SVRBESO"]
["Wolfwil SO, Turnhalle",2169,"Turnhalle","Schulstrasse",4,4628,"Wolfwil SO","SVRBESO"]
["Worb, Zentrum",1951,"Zentrum","Bahnhofstrasse",5,3076,"Worb","SVRBESO"]
["Zollikofen, Geisshubel",293,"Geisshubel","Alpenstrasse",74,3052,"Zollikofen","SVRBESO"]
[null,null,null,null,null,null,null,"SVRBESO"]
["Beispielort, Beispielhalle",null,null,null,null,null,null,"SVRBESO"]

{"sheet":"schiedsrichterliste20211115","index":3,"n_rows":161,"n_cols":52,"rows_kept":161,"cut":false,"hidden":true,"merged":[]}
["#","SV-Nummer","Name","Vorname",null,"Strasse","Nummer","Postfach","Plz","Ort","Email","Email","Telefon","Fax","Mobile","Strasse G.","Nummer G.","Postfach G.","Plz G.","Ort G.","Email G.","Telefon G.","Fax G.","Mobile G.","Sprache","Jahrgang","Nationalität","Land","Letzte Änderung","Anz. Abs.","Letzter Login","Schiedsrichter für","Spieler bei/Trainer bei","Öffentliche Verkehrsmittel","Privates Verkehrsmittel","Nichtpflichtig","Pfeift keine","Nur Einzelspiele","Prüfungsdatum","Saison","Grad","Quali",null,"Gewünschter Grad","Gewünschte Quali","Dispensation","Nicht 2. Schiri","Exklusiv-Vereine","Anzahl Einsätze gewünscht","Anzahl Einsätze","Anzahl Doppel-Einsätze","Bemerkungen"]
[" "," "," "," "," "," "," "," "," "," "]
[3861,43961,"Aerni","Valerie",{"$f":"CONCATENATE(C3,\" \",D3)","v":"Aerni Valerie"},"Reichenbachstrasse",16,null,3004,"Bern","vali_aerni@hotmail.com",{"$f":"CONCATENATE(K3,\";\")","v":"vali_aerni@hotmail.com;"},null,null,"078 713 67 89",null,null,null,null,null,null,null,null,null,"D",1990,null,null,"2021-07-07T09:14:14",37,"2021-11-07T21:49:15","907075 VBC Bucheggberg (1 Mandate)","4L - f - VBC Bucheggberg",1,0,0,null,0,null,6,"N2",3,null,null,"Nein",0,null,"Normales Pensum",3,0,null,"Ich spiele noch in der Mixed Mannschaft vom VBC Bucheggberg"]
[4168,84694,"Aeschlimann","Leonie",{"$f":"CONCATENATE(C4,\" \",D4)","v":"Aeschlimann Leonie"},"Kirchweg ",9,null,3510,"Konolfingen","leonie.aeschli@gmail.com","leonie.aeschli@gmail.com;","031 791 38 19",null,"079 242 83 03",null,null,null,null,null,null,null,null,null,"D",2003,null,null,"2021-11-05T14:05:47",119,"2021-11-04T07:44:51","907350 VBC Konolfingen (0.5 Mandate)","4L - f - VBC Konolfingen, U23-2 - f - VBC Konolfingen",1,0,0,null,0,"2019-09-01",0,"N1",5,null,null,"Nein",0,null,"Halbes Pensum",1,0,"Ich bitte Sie, mir keine Spiele im Mehrzweckgebäude Gurzelen/Seftigen mehr zuzuteilen. Da die Halle weder mit dem ÖV noch zu Fuss gut erreichbar ist (vom Bahnhof Seftigen hat man zu Fuss ca. 20 Minuten) und ich noch nicht Autofahren kann resp. darf, ist der Weg nicht zumutbar. Vielen Dank für Ihr Verständnis","Ich bitte Sie, mir keine Spiele im Mehrzweckgebäude Gurzelen/Seftigen mehr zuzuteilen. Da die Halle weder mit dem ÖV noch zu Fuss gut erreichbar ist (vom Bahnhof Seftigen hat man zu Fuss ca. 20 Minuten) und ich noch nicht Autofahren kann resp. darf, ist der Weg nicht zumutbar. Vielen Dank für Ihr Verständnis"]
[3126,26679,"Al Kaabi","Ali","Al Kaabi Ali","Holenackerstrasse",31,null,3027,"Bern","ali.alkaabi1409@gmail.com","ali.alkaabi1409@gmail.com;",null,null,"078 695 45 33",null,null,null,null,null,null,null,null,null,"D",1968,null,null,"2021-08-29T20:36:26",45,"2021-11-11T17:38:13","907380 Volley Liebefeld (1.5 Mandate)",null,1,1,0,null,0,null,0,"N3",2,null,null,"Nein",0,null,"1½ Pensum",2,0]
[3950,85747,"Annaheim","Sandra","Annaheim Sandra","Grabenstrasse",7,null,3360,"Herzogenbuchsee","s.annaheim@hotmail.com","s.annaheim@hotmail.com;",null,null,"079 369 97 42",null,null,null,null,null,null,null,null,null,"D",2000,null,null,"2021-09-13T10:25:32",44,"2021-11-10T16:39:45","907920 VBC Langenthal (1 Mandate)","3L - f - VBC Herzogenbuchsee",1,1,0,null,0,"2018-09-25",0,"N1",4,null,null,"Nein",0,null,"Normales Pensum",9,0]
[4617,97169,"Artho","Bianca","Artho Bianca","Hofmattweg ",51,null,4710,"Balsthal","bianca.artho@gmail.com","bianca.artho@gmail.com;",null,null,"078 730 18 81",null,null,null,null,null,null,null,null,null,"D",2004,null,null,"2021-08-18T17:00:11",53,"2021-11-11T09:52:57","907545 VBG Welschenrohr (1 Mandate)","5L - f - VBG Welschenrohr",1,0,0,null,0,"2021-09-12",0,"N1",6,null,null,"Nein",0,null,"Normales Pensum",5,0]
[3862,53416,"Artho","Mara","Artho Mara","Kleinrieden",1,null,4713,"Matzendorf","mara.artho@bluewin.ch","mara.artho@bluewin.ch;","062 394 17 53",null,"077 453 12 65",null,null,null,null,null,null,null,null,null,"D",1999,null,null,"2021-05-26T10:30:15",93,"2021-11-11T18:30:13","907545 VBG Welschenrohr (0.5 Mandate)","3L pro - f - VBG Welschenrohr",0,1,0,null,0,null,3,"N2",2,null,null,"Nein",0,null,"Halbes Pensum",3,0,"Besuche eine Weiterbildung und habe deshalb jeweils am Samstag bis 12:00 Uhr in Bern (Wankdorf) Schule. Kann deshalb am Samstag erst am Nachmittag ab 15:00 Uhr Spiele leiten. In der Region Bern allenfalls Spiele mit früherer Anspielzeit. DANKE!"]
[4435,101995,"Asllani","Luljeta","Asllani Luljeta","Bahnhofstrasse ",22,null,3800,"Interlaken","sul.luljeta@gmail.com","sul.luljeta@gmail.com;",null,null,"079 576 77 07",null,null,null,null,null,null,null,null,null,"D",1994,null,null,"2021-08-30T14:41:54",153,"2021-11-11T22:55:53","907750 SV Strättligen (1 Mandate)",null,0,1,0,null,0,"2020-09-20",0,"N1",6,null,null,"Nein",0,null,"Normales Pensum",8,0,"Blutiger Anfänger :)  ","Prinzipiell pfeife ich keine regionalen Einsätze. Ich gebe meine Punkte aber Uni Bern. Allenfalls nehme ich mal ein Spiel aus der Börse. Merci!"]
[4645,91998,"Avdullahu","Aldrina","Avdullahu Aldrina","Steingasse ",1,null,4934,"Madiswil","aldrina.avdullahu@hotmail.ch","aldrina.avdullahu@hotmail.ch;",null,null,"079 122 07 06",null,null,null,null,null,null,null,null,null,"D",2000,null,null,null,14,"2021-11-09T09:18:39","907920 VBC Langenthal (1 Mandate)","U23-2 - f - VBC Langenthal",1,1,0,null,0,"2021-09-18",0,"N1",6,null,null,"Nein",0,null,"Normales Pensum",5,0]
[3951,93195,"Bachmann","Célina","Bachmann Célina","Blüemlisalpweg",14,null,3123,"Belp","celicelina@belponline.ch","celicelina@belponline.ch;",null,null,"079 194 52 27",null,null,null,null,null,null,null,null,null,"D",2000,null,null,"2019-09-02T22:39:06",151,"2021-09-20T13:02:34","907440 VBC Münsingen (0.5 Mandate)","U23-1 - f - VBC Münsingen, 4L - f - VBC Münsingen",1,0,0,null,0,null,0,"N1",4,null,null,"Nein",0,null,"Halbes Pensum",0,0,"12.09.21 A. Sigrist: Kein Covid-Zertifikat","Bitte um selber matchs auswählen, wie bei der umfrage geschrieben!  Habe andy meine wünsche schon durchgegeben und hoffe es klappt so :-)"]
[3214,185203,"Bachmann","Claudia","Bachmann Claudia","Stegmattweg",3,null,3032,"Hinterkappelen","cla83bach@bluewin.ch","cla83bach@bluewin.ch;",null,null,"078 897 48 89",null,null,null,null,null,null,null,null,null,"D",1983,null,null,"2020-08-26T15:43:04",51,"2021-11-11T13:20:30","907730 STB Volley (1 Mandate)",null,0,1,0,null,0,null,0,"N3",2,null,null,"Nein",0,null,"Normales Pensum",1,0,"ich wäre sehr froh wenn ich die matchs wieder selber aussuchen könnte die ich pfeiffen möchte, hilft mir beim organisieren mit kindern, selber match und unregelmässiger arbeit...   ","Ich habe in diesem Jahr meine Abschlussprüfungen und wede aus diesem grund nur ein Halbes Mandat pfeiffen. Am liebsten pfeiffe ich 2 Matche an einem stück so loht sich der zeitliche aufwand für mich. Ich werde ebenso relativ viele sperdaten eingeben und mir meine Matche spontan aus der Börse holen wen ich sehe das ein Zeitfenster fürs Volleyball frei wird. "]
[4644,74101,"Bachmann","Melina","Bachmann Melina","Eymatt",1,null,3662,"Seftigen","melina.bachmann@gmx.net","melina.bachmann@gmx.net;",null,null,"079 157 12 84",null,null,null,null,null,null,null,null,null,"D",2003,null,null,"2021-09-05T20:36:30",130,"2021-11-06T08:20:35","907647 VBC Seftigen (1 Mandate)","4L - f - VBC Seftigen",1,1,0,null,0,"2021-08-29",0,"N1",6,null,null,"Nein",0,null,"Normales Pensum",6,0]
[3556,36237,"Badertscher","Stephanie","Badertscher Stephanie","Kreuzmatt",7,null,3507,"Biglen","baderstephi@gmail.com","baderstephi@gmail.com;","031 711 27 80",null,"079 962 08 75",null,null,null,null,null,null,null,null,null,"D",1995,null,null,"2020-08-03T22:29:43",120,"2021-11-11T21:39:10","907270 VBC Grosshöchstetten (1 Mandate)","3L pro - f - VBC Grosshöchstetten",0,1,0,null,0,"2017-09-03",0,"N1",3,null,null,"Nein",0,null,"Normales Pensum",5,0,"Ich würde gerne den nächsten Schitsrichterkurs N2 besuchen damit ich auch höhere stufen pfeiffen kann. "]
[4424,35500,"Béboux","Francis","Béboux Francis","Jean-Sessler-Strasse",2,null,2502,"Biel","francis.beboux@hotmail.com","francis.beboux@hotmail.com;","041 340 06 60",null,"079 101 63 94",null,null,null,null,null,null,null,null,null,"D",1994,null,null,"2021-10-11T18:37:26",56,"2021-11-08T17:49:05","907820 VBC Uni Bern  (1 Mandate)","2L - m - VBC Uni Bern",1,0,0,null,0,"2020-09-20",0,"N1",6,null,null,"Nein",0,null,"Normales Pensum",4,0]
[4643,74103,"Becker","Anouk","Becker Anouk","Seematte",17,null,3116,"Kirchdorf","anoukbecker@bluewin.ch","anoukbecker@bluewin.ch;",null,null,"079 652 26 62",null,null,null,null,null,null,null,null,null,"D",2004,null,null,"2021-09-17T13:32:53",91,"2021-11-11T08:01:35","907647 VBC Seftigen (1 Mandate)",null,1,1,0,null,0,"2021-08-29",0,"N1",6,null,null,"Nein",0,null,"Normales Pensum",5,0]
[4759,113615,"Becker","Lea","Becker Lea","Grimmengasse",4,null,4500,"Solothurn","becker.lea@gmx.de","becker.lea@gmx.de;",null,null,"+49 170 4619245",null,null,null,null,null,null,null,null,null,"D",1988,null,null,"2021-08-28T16:28:30",205,"2021-11-10T10:24:50","907810 VC Uettligen (0.5 Mandate)",null,1,1,0,null,0,null,0,"N",1,null,null,"Nein",0,null,"Halbes Pensum",0,0]
[4425,66173,"Berger","Lia","Berger Lia","Stadtacker ",11,null,4629,"Fulenbach","lia.a.berger@gmail.com","lia.a.berger@gmail.com;",null,null,"078 408 14 73",null,null,null,null,null,null,null,null,null,"D",2004,null,null,"2021-09-14T12:53:58",150,"2021-11-08T22:44:54","907181 Hägendorf TUS (1 Mandate)","3L - f - Hägendorf TUS",1,0,0,null,0,"2020-09-20",0,"N1",6,null,null,"Nein",0,null,"Normales Pensum",1,0,"14.09.21 A. Sigrist: Kein Covid-Zertifikat 08.10.21 A. Sigrist: Zertifikat ab 25.10.","20.08.2020 Wenn möglich keine Spiele in Langnau,Schwarzenburg und Oberdiessbach ab 17uhr meine öv verbindungen sind nicht so gut,bitte beachten die MZH3Höfe in Heinrichswil-Winistorf ist am Samstage mit öv nicht erreichbar es gibt gar keine Verbindung.LG Beno"]
[4642,80252,"Bickel","Rebecca","Bickel Rebecca","Bümplizstrasse ",84,null,3018,"Bern","re.bi99@bluewin.ch","re.bi99@bluewin.ch;",null,null,"079 740 21 80",null,null,null,null,null,null,null,null,null,"D",1999,null,null,"2021-08-23T11:04:09",72,"2021-11-08T08:59:58","907370 VT Langnau (1 Mandate)","5L - f - VT Langnau",0,1,0,null,0,"2021-09-18",0,"N1",6,null,null,"Nein",0,null,"Normales Pensum",1,0,"Da ich in der Pflege arbeite, habe ich bis im November viele Absenzen, da ich keine Frei oder Dienst wünsche eingeben kann. Ich hoffe, dass dies berücksichtigt werden kann. "]
[4606,212339,"Bockstaller","Tobias","Bockstaller Tobias","Viktoriastrasse",84,null,3013,"Bern","tobias.bockstaller@gmail.com","tobias.bockstaller@gmail.com;",null,null,"079 280 81 29",null,null,null,null,null,null,null,null,null,"D",1987,null,null,"2021-08-25T08:03:03",65,"2021-11-11T12:00:28","907820 VBC Uni Bern  (1 Mandate)","2L - m - VBC Uni Bern",1,0,0,null,0,null,0,"N3",2,null,null,"Nein",0,null,"Normales Pensum",1,0,"Ich bin bereits ausgebildeter Linienrichter und würde auch Einsätze übernehmen, falls es da welche gibt."]
[3115,167160,"Boselli","Benedetto","Boselli Benedetto","Käsereigasse",20,null,3282,"Bargen BE","veltlin53@gmx.ch","veltlin53@gmx.ch;","032 392 28 30",null,"079 767 98 58",null,null,null,null,null,null,null,null,null,"D",1953,null,null,"2019-05-28T15:53:01",93,"2021-11-10T17:19:16","907005 Aarberg Volero (2 Mandate)",null,1,0,0,null,0,null,0,"N2",3,null,null,"Nein",0,null,"Doppeltes Pensum",3,2,"20.08.2020 Wenn möglich keine Spiele in Langnau,Schwarzenburg und Oberdiessbach ab 17uhr meine öv verbindungen sind nicht so gut,bitte beachten die MZH3Höfe in Heinrichswil-Winistorf ist am Samstage mit öv nicht erreichbar es gibt gar keine Verbindung.LG Beno"]
[4646,103635,"Brunner","Chiara","Brunner Chiara","Dorfstrasse",4,null,3504,"Niederhünigen","chiaragia.brunner@gmail.com","chiaragia.brunner@gmail.com;",null,null,"079 283 22 65",null,null,null,null,null,null,null,null,null,"D",2003,null,null,"2021-06-14T07:47:08",29,"2021-11-02T18:09:36",null,null,1,1,0,null,0,"2021-09-18",0,"N1",6,null,null,"Nein",0,null,"Normales Pensum",2,0]
[4439,75165,"Brunner","Romy","Brunner Romy","Ausserbächeln",50,null,3753,"Oey","romy.brunnet@gmail.com","romy.brunnet@gmail.com;",null,null,"079 433 04 27",null,null,null,null,null,null,null,null,null,"D",2001,null,null,"2020-08-28T12:38:13",119,"2021-08-27T14:18:18","907690 VBC Sotto-Simme (1 Mandate)",null,0,1,0,null,0,"2020-09-20",0,"N1",6,null,null,"Nein",0,null,"Normales Pensum",0,0,"13.09.21 A. Sigrist: Kein Zertifkat"]
[3953,87658,"Brönnimann","Anissa","Brönnimann Anissa","Rohrstrasse",37,null,3507,"Biglen","anissa.broennimann@sunrise.ch","anissa.broennimann@sunrise.ch;",null,null,"076 544 02 33",null,null,null,null,null,null,null,null,null,"D",2002,null,null,"2021-10-20T12:27:12",79,"2021-11-06T09:32:29","907465 Volley Oberdiessbach (0.5 Mandate)",null,1,0,0,null,0,null,0,"N1",3,null,null,"Nein",0,null,"Halbes Pensum",4,0]
[4359,34758,"Burkhard","Urs","Burkhard Urs","Lindhaldenstrasse",69,null,3076,"Worb","urs.burkhard@bluewin.ch","urs.burkhard@bluewin.ch;",null,null,"079 342 54 41",null,null,null,null,null,null,null,null,null,"D",1960,null,null,"2020-10-01T13:02:20",null,"2021-11-11T22:59:40",null,null,1,1,0,null,0,null,0,"RD",null,null,null,"Nein",0,null,"Normales Pensum",0,0]
[4358,15968,"Bürgi","Hansruedi","Bürgi Hansruedi","Scheuerriedernweg",14,null,3250,"Lyss","saph.buergi@bluewin.ch","saph.buergi@bluewin.ch;","032 384 57 48",null,"079 340 82 47",null,null,null,null,null,null,null,null,null,"D",1947,null,null,"2020-06-12T11:25:31",null,null,null,null,1,1,0,null,0,null,0,"RD",null,null,null,"Nein",0,null,"Normales Pensum",0,0]
[4179,46919,"Christen","Lea","Christen Lea","Neumatt",1,null,2556,"Schwadernau","lea.christen@gmx.ch","lea.christen@gmx.ch;",null,null,"076 817 02 06",null,null,null,null,null,null,null,null,null,"D",2002,null,null,"2019-09-11T10:57:53",13,"2021-11-12T10:04:01","907765 VBC Studen (0.5 Mandate)","3L - f - VBC Studen, 5L - f - VBC Studen",1,1,0,null,0,"2019-09-07",0,"N1",6,null,null,"Nein",0,null,"Halbes Pensum",1,2,null,"Ich würde es bevorzugen vor allem mit jungen SR zu pfeifen und bevorzugt als 2. SR."]
[4647,97770,"Danivel","Lathiya","Danivel Lathiya","Aarwangenstrasse",91,null,4900,"Langenthal","lathiya2004@hotmail.com","lathiya2004@hotmail.com;",null,null,"076 345 31 94",null,null,null,null,null,null,null,null,null,"D",2004,null,null,"2021-09-07T11:46:31",71,"2021-09-25T11:37:41","907920 VBC Langenthal (1 Mandate)","U19-2 - f - VBC Langenthal",1,0,0,null,0,"2021-09-18",0,"N1",6,null,null,"Nein",0,null,"Normales Pensum",0,0,"Tanzkurs (mit Prüfungen) immer Samstag-Morgen. Ab Anfang 2022 dann früher möglich. Sonntag eher möglich. 27.09.21 A. Sigrist: alle 6 Aufgebote zurück gegeben, da sie für die Covid-Tests bezahlen muss. Verzichtet vorerst auf SR-Einsätze.","Bitte keine Zuteilungen die über 30 KM von meinem Wohnort entfert sind. 29.08.2019"]
[3262,59652,"De Groote","Gil","De Groote Gil","Rapsweg",2,null,4552,"Derendingen","gildegroote1@hotmail.com","gildegroote1@hotmail.com;",null,null,"076 761 11 18",null,null,null,null,null,null,null,null,null,"D",2000,null,null,"2021-10-06T11:14:47",84,"2021-10-30T11:26:08","907192 VBC Herzogenbuchsee (0.5 Mandate)",null,1,1,0,null,0,null,0,"N1",4,null,null,"Nein",0,null,"Halbes Pensum",3,0]
[4557,34426,"Dettwiler","Ines","Dettwiler Ines","Sägetstrasse ",2,null,3303,"Jegenstorf","happy-ines@gmx.ch","happy-ines@gmx.ch;",null,null,"079 375 91 88",null,null,null,null,null,null,null,null,null,"D",1991,null,null,"2020-08-26T17:13:59",100,"2021-11-06T09:36:58","907450 VBC Münchenbuchsee (1 Mandate)","2L - f - Satus Köniz",0,1,0,null,0,null,0,"N2",3,null,null,"Nein",0,null,"Normales Pensum",2,0]
[3143,175454,"Droguett","Francisco","Droguett Francisco","Grünaustrasse",37,null,3084,"Wabern","francisco.droguett@gmx.ch","francisco.droguett@gmx.ch;","031 961 63 32",null,"079 308 65 25",null,null,null,null,null,null,null,null,null,"D",1978,null,null,"2020-03-10T06:57:55",205,"2021-11-11T13:40:21","907820 VBC Uni Bern  (1 Mandate)","2L - f - VBC Uni Bern",1,0,0,null,0,null,0,"N",1,null,null,"Nein",0,null,"Normales Pensum",0,0,null,"Ist es möglich, die Zeiten nur für einzelne Tage zu ändern? Da ich teilweise an Wochenenden arbeite, könnte ich an diesen Tagen erst gegen Abend als Schiri im Einsatz stehen. Die Planung fürs 2021 habe ich jedoch noch nicht erhalten, weshalb ich noch keine konkreten Daten dafür angeben kann..."]
[3220,208521,"Enkerli","Philippe","Enkerli Philippe","Ryf",38,null,3280,"Murten","philippe_enkerli@hotmail.com","philippe_enkerli@hotmail.com;",null,null,"079 741 40 42",null,null,null,null,null,null,null,null,null,"D",1988,null,null,"2021-04-12T13:54:21",39,"2021-11-10T19:09:34","907440 VBC Münsingen (1 Mandate)",null,1,1,0,null,0,null,0,"N",1,null,null,"Nein",0,null,"Normales Pensum",0,0,"Ich würde es bevorzugen vor allem mit jungen SR zu pfeifen und bevorzugt als 2. SR.","Hoffe auf eine \"normale\" Saison!"]
[4440,66960,"Fasel","Celine","Fasel Celine","Zihl",334,null,3673,"Linden","cesel@gmx.net","cesel@gmx.net;",null,null,"078 854 00 02",null,null,null,null,null,null,null,null,null,"D",2001,null,null,"2020-08-23T12:57:38",19,"2021-10-25T16:24:14","907270 VBC Grosshöchstetten (0.5 Mandate)","3L - f - Volley Oberdiessbach, U23-1 - f - Volley Oberdiessbach",1,0,0,null,0,"2020-09-20",0,"N1",5,null,null,"Nein",0,null,"Halbes Pensum",0,0]
[4441,80271,"Fasel","Janina","Fasel Janina","Zihl",334,null,3673,"Linden","jasel@gmx.ch","jasel@gmx.ch;",null,null,"079 916 18 15",null,null,null,null,null,null,null,null,null,"D",2004,null,null,"2020-10-07T08:59:32",105,"2021-09-12T21:58:27","907270 VBC Grosshöchstetten (1 Mandate)","U23-2 - f - VBC Grosshöchstetten",1,0,0,null,0,"2020-09-20",0,"N1",6,null,null,"Nein",0,null,"Normales Pensum",0,0,"14.09.21 A. Sigrist: Kein Covid-Zertifikat"]
[4641,74471,"Fehr","Ajana","Fehr Ajana","Erlenweg",5,null,3662,"Seftigen","12ajana12f@gmail.com","12ajana12f@gmail.com;",null,null,"079 309 85 22",null,null,null,null,null,null,null,null,null,"D",2005,null,null,"2021-09-17T13:33:23",47,"2021-11-08T21:51:59","907647 VBC Seftigen (1 Mandate)","4L - f - VBC Seftigen",1,0,0,null,0,"2021-09-18",0,"N1",6,null,null,"Nein",0,null,"Normales Pensum",5,0]
[3867,59708,"Fehrenbach","Simea","Fehrenbach Simea","Dorfstrasse",53,null,4917,"Melchnau","simea.f@gmail.com","simea.f@gmail.com;",null,null,"079 850 82 41",null,null,null,null,null,null,null,null,null,"D",1997,null,null,"2021-08-20T14:07:21",81,"2021-11-06T22:43:39","907925 Regio Volleyteam (1 Mandate)","3L pro - f - Regio Volleyteam a, U19-2 - f - Regio Volleyteam",0,1,0,null,0,null,3,"N1",4,null,null,"Nein",0,null,"Normales Pensum",4,2,"Ist es möglich, die Zeiten nur für einzelne Tage zu ändern bei den Absenzen? Da ich teilweise an Wochenenden arbeite, könnte ich an diesen Tagen beispielsweise ab 17:00 Uhr im Einsatz stehen; ohne diese Funktion muss ich diese Tage jedoch komplett sperren. Bzw auch für die Wochentage verschiedene Startzeiten eingeben können wäre sehr praktisch. "]
[3128,68941,"Fichter","Andreas","Fichter Andreas","Milchgässli",3,null,3858,"Hofstetten b. Brienz","rfichter@swissonline.ch","rfichter@swissonline.ch;","033 951 20 68",null,"079 442 36 75",null,null,null,null,null,null,null,null,null,"D",1947,null,null,"2021-08-28T22:50:55",44,"2021-11-12T09:23:00","907152 VBC Brienz-Meiringen (1 Mandate), 907740 TV Steffisburg (1 Mandate)",null,0,1,0,null,0,null,0,"N2",3,null,null,"Nein",0,"907820 | VBC Uni Bern","Doppeltes Pensum",10,0,"Hoffe auf eine \"normale\" Saison!","Aufgrund meiner Arbeit kann ich nur am Wochenende pfeiffen. Dies wurde in der Vergangenheit immer berücksichtigt.  Ich möchte nur 10 Spiele und nicht mehr pfeiffen. Letzte Saison hatte ich auch 10 Spiele angegeben. Am Schluss waren es 16 Spiele.   Ich würde bei Spielen mit zwei Schiedsrichtern gerne mit Tatjana Friedrich und/oder Dominique Roth pfeiffen.   02.07.2020"]
[3960,12718,"Fink","Daniela","Fink Daniela","Buebelee",2,null,3303,"Jegenstorf","daniela.fink@gmail.com","daniela.fink@gmail.com;",null,null,"079 650 82 27",null,null,null,null,null,null,null,null,null,"D",1990,null,null,"2020-06-26T08:11:18",34,"2021-11-11T16:31:28","907456 Volley Muri Bern (1 Mandate)",null,1,1,0,null,0,null,0,"N2",2,null,null,"Nein",0,null,"Normales Pensum",1,0,"Da ich in Solothurn arbeite ist es auch gut möglich unter der Woche in s Solothurn und Umgebing zu pfeiffen","Vorrunde: Einsatz am Wochenende früher als 17 Uhr möglich"]
[4363,170310,"Florin","Evelyn","Florin Evelyn","Bernstrasse","24F",null,3400,"Burgdorf","e.florin@bluewin.ch","e.florin@bluewin.ch;",null,null,"079 405 99 09",null,null,null,null,null,null,null,null,null,"D",1967,null,null,"2020-07-12T21:28:23",34,"2021-11-11T21:04:57","907110 VBC Bern (1 Mandate), 907810 VC Uettligen (1 Mandate)",null,0,1,0,null,0,null,0,"N2",3,null,null,"Nein",0,null,"Doppeltes Pensum",0,0,null,"Bei Einsätzen mit zwei Schiedsrichtern am Wochenende  wäre es schön mit Jeannette Frech eingeteilt zu werden. Zudem wäre bei der Einteilung der Einsätze wünschenswert wenn man nicht dreimal in einer Woche pfeiffen muss  und dann wieder für 3 Wochen gar nicht. "]
[3870,57099,"Fluri","Sina","Fluri Sina","Buelternweg",245,null,4715,"Herbetswil","sinafluri@hotmail.com","sinafluri@hotmail.com;",null,null,"079 322 06 48",null,null,null,null,null,null,null,null,null,"D",2000,null,null,"2021-09-13T06:43:34",38,"2021-11-11T11:58:27","907545 VBG Welschenrohr (1 Mandate)","3L pro - f - VBG Welschenrohr, U19-3 - f - VBG Welschenrohr",0,1,0,null,0,null,0,"N1",3,null,null,"Nein",0,null,"Normales Pensum",5,0,null,"Aug. 2020  Bitte keine Doppelspiele. Ich arbeite oft am Wochenende zum Teil sind Spiele am WE möglich  die ich abgekreuzt habe aber ev. erst ab 17uhr."]
[3871,60450,"Flury","Niklaus","Flury Niklaus","Grüttbachstrasse",2,null,4542,"Luterbach","niklaus.flury@bluewin.ch","niklaus.flury@bluewin.ch;",null,null,"079 354 56 66",null,null,null,null,null,null,null,null,null,"D",1969,null,null,"2021-07-24T13:25:58",72,"2021-11-10T20:58:33","907926 Volley Solothurn (1.5 Mandate)","U19-3 - f - Volley Solothurn",0,1,0,null,0,null,30,"N3",2,null,null,"Nein",0,null,"1½ Pensum",0,0]
[4640,65927,"Frank","Lina","Frank Lina","Eigerweg",32,null,3073,"Gümligen","lina.frank@muri-be.ch","lina.frank@muri-be.ch;","031 951 97 62",null,"077 426 74 50",null,null,null,null,null,null,null,null,null,"D",2000,null,null,"2021-06-18T22:48:50",33,"2021-11-09T18:20:16","907456 Volley Muri Bern (1 Mandate)","3L - f - Volley Muri Bern",1,1,0,null,0,"2021-08-29",0,"N1",6,null,null,"Nein",0,null,"Normales Pensum",5,0]
[4649,58323,"Franz","Robert","Franz Robert","Vorackerweg",4,null,3073,"Gümligen","robert.franz@polypoint.ch","robert.franz@polypoint.ch;","031 951 35 71",null,"076 442 40 64",null,null,null,null,null,null,null,null,null,"D",1971,null,null,"2021-09-06T08:49:19",107,"2021-11-11T18:07:15","907456 Volley Muri Bern (1 Mandate)",null,1,0,0,null,0,"2021-08-29",0,"N1",6,null,null,"Nein",0,null,"Normales Pensum",7,0,"als Schiedsrichter-Frischling vielleicht etwas vermessen, aber ich bin schon froh, wenn ich in absehbarer Zeit bis sagen wir mal 3. Liga Damen und Herren pfeiffen kann."]
[4639,68180,"Frey","Mara","Frey Mara","Oenzgasse",6,null,3362,"Niederönz","mara.jaya@gmx.ch","mara.jaya@gmx.ch;","062 961 13 56",null,"076 414 96 86",null,null,null,null,null,null,null,null,null,"D",2002,null,null,"2018-03-26T15:25:56",101,"2021-10-18T23:07:11","907920 VBC Langenthal (1 Mandate)","3L pro - f - VBC Langenthal, U23-2 - f - VBC Langenthal",1,1,0,null,0,"2021-09-18",0,"N1",6,null,null,"Nein",0,null,"Normales Pensum",4,0,"Wenn möglich manchmal direkt nach eigenem Match   Donnerstag + Montag unter der Woche nicht möglich","Arbeite viel am Samstag und teils Sonntag "]
[3562,96780,"Friedli","Gaby","Friedli Gaby","Unter der Fuhre",17,null,3812,"Wilderswil","sg.friedli@outlook.com","sg.friedli@outlook.com;","033 821 08 88",null,"079 539 61 63",null,null,null,null,null,null,null,null,null,"D",1966,null,null,"2021-01-25T09:37:57",59,"2021-11-09T16:55:31","907027 VBC Interlaken (1 Mandate)","4L - f - VBC Interlaken",0,1,0,null,0,"2017-09-03",0,"N1",4,null,null,"Nein",0,null,"Normales Pensum",8,0,"Vorrunde: Einsatz am Wochenende früher als 17 Uhr möglich"]
[4638,46864,"Fuhrer","Janine","Fuhrer Janine","Balderstrasse",13,null,3007,"Bern","janine.fuhrer99@gmail.com","janine.fuhrer99@gmail.com;",null,null,"077 458 63 02",null,null,null,null,null,null,null,null,null,"D",1999,null,null,"2021-08-29T20:36:43",62,"2021-11-11T11:39:18","907370 VT Langnau (1 Mandate)","3L pro - f - VT Langnau",1,0,0,null,0,"2021-08-29",0,"N1",6,null,null,"Nein",0,null,"Normales Pensum",5,0]
[3168,173000,"Gafner","Judith","Gafner Judith","Schwendegg","19B",null,3622,"Homberg bei Thun","ju73@bluewin.ch","ju73@bluewin.ch;","033 442 01 20",null,"079 210 42 66",null,null,null,null,null,null,null,null,null,"D",1973,null,null,"2019-09-07T16:57:26",105,"2021-11-03T13:11:03","907200 VBC Burgdorf (1 Mandate), 907740 TV Steffisburg (1 Mandate)",null,1,1,0,null,0,null,0,"N2",3,null,null,"Nein",0,null,"Doppeltes Pensum",0,0,"12.09.21 A. Sigrist: Kein Covid-Zertifikat  /  Aug. 2021  Bitte keine Doppelspiele. Ich arbeite oft am Wochenende zum Teil sind Spiele am WE möglich  die ich abgekreuzt habe aber ev. erst ab 17uhr."]
[4180,77779,"Gashi","Diana","Gashi Diana","Kappelenring",10,null,3032,"Hinterkappelen","gashidiana422@gmail.com","gashidiana422@gmail.com;",null,null,"078 836 56 96",null,null,null,null,null,null,null,null,null,"D",1999,null,null,"2021-09-07T13:01:47",43,"2021-11-11T08:46:25","907810 VC Uettligen (1 Mandate)","3L pro - f - VC Uettligen",0,1,0,null,0,"2019-09-07",0,"N1",5,null,null,"Nein",0,null,"Normales Pensum",4,2]
[3874,213962,"Geiser","Christoph","Geiser Christoph","Kistlerstrasse",50,null,3065,"Bolligen","christoph.geiser@binary-evasion.com","christoph.geiser@binary-evasion.com;",null,null,"079 568 49 91",null,null,null,null,null,null,null,null,null,"D",1985,null,null,"2020-08-07T09:49:27",59,"2021-11-11T22:39:30","907922 STV Oensingen (2 Mandate)",null,0,1,0,null,0,null,7,"N3",2,null,null,"Nein",0,null,"Doppeltes Pensum",1,0,"Bitte in der ersten Hälfte der Saison zuerst einige Spiele in tieferen Ligen (3. Liga, 2. Liga) zuteilen, da ich aufgrund meines Militärdienstes im September die praktische Schiri-Vorbereitung nicht absolvieren kann."]
[4426,59503,"Gerber","Jennifer","Gerber Jennifer","Neumattstrasse",19,null,3053,"Münchenbuchsee","jennifergerber@bluemail.ch","jennifergerber@bluemail.ch;",null,null,"079 122 26 50",null,null,null,null,null,null,null,null,null,"D",1998,null,null,"2021-06-22T14:37:54",133,"2021-11-12T08:22:19","907450 VBC Münchenbuchsee (0.5 Mandate)","3L pro - f - VBC Münchenbuchsee",1,0,0,null,0,"2020-09-20",0,"N1",5,null,null,"Nein",0,null,"Halbes Pensum",2,0]
[4637,77497,"Gross","Carla","Gross Carla","Finkenweg",6,null,3098,"Köniz","carla.gross@gmx.ch","carla.gross@gmx.ch;","031 972 45 86",null,"077 454 89 14",null,null,null,null,null,null,null,null,null,"D",2005,null,null,"2021-11-02T15:41:41",136,"2021-11-03T09:29:46","907345 Volley Köniz (1 Mandate)","2L - f - Volley Köniz, 1L - f - Volley Köniz II",1,0,0,null,0,"2021-09-18",0,"N1",6,null,null,"Nein",0,null,"Normales Pensum",6,0,"Ich würde gerne auch Spiele pfeifen, welche nach einem Spiel meiner Mannschaft stattfinden! Zudem würde ich gerne auch doppelte Einsätze machen, zum Beispiel 2 Spiele nacheinander pfeifen.","Achtung Spesenberechnung (>900km) (Postadresse: Tiergarten 25, 3400 Burgdorf) (Für Spesen Adresse auf Tiergarten 1 ändern - A. Sigrist 08.01.2019)"]
[4636,68837,"Gut","Joel","Gut Joel","Finkenweg",11,null,3506,"Grosshöchstetten","joel.gut@gmx.net","joel.gut@gmx.net;","031 712 07 07",null,"077 266 19 30",null,null,null,null,null,null,null,null,null,"D",2000,null,null,"2021-10-29T16:04:12",2,"2021-11-08T15:24:04","907450 VBC Münchenbuchsee (1 Mandate)","4L - m - VBC Münchenbuchsee , U23-2 - m - VBC Münchenbuchsee",1,0,0,null,0,"2021-09-18",0,"N1",6,null,null,"Nein",0,null,"Normales Pensum",2,0,"Sehr gerne an Daten, an denen ich mit meinem Team spiele. Da ich im U23 und 4L Team bin, kommen da einige Daten Zusammen. Ich mache das zum ersten Mal und in der Anleitung steht nicht, ob ich da die Spieldaten hier angeben müsste, oder ob die bei Ihnen angezeigt werden. Ich kann die Daten problemlos liefern. Liebe Grüsse, Joel.","Ich Arbeite in der Pflege also weis ich meinen Dienstplan immer erst 2 Monate im Voraus."]
[4365,37138,"Gündöner","Tanzer","Gündöner Tanzer","Lehnrütiweg",6,null,4702,"Oensingen","tanzer.g6@gmail.com","tanzer.g6@gmail.com;","062 391 55 49",null,null,null,null,null,null,null,null,null,null,null,"D",1948,null,null,"2020-01-13T15:39:11",null,"2021-11-02T12:26:41",null,null,1,1,0,null,0,null,0,"RD",null,null,null,"Nein",0,null,"Normales Pensum",0,0]
[4442,62300,"Hadorn","Nina","Hadorn Nina","Amselweg","2b",null,3506,"Grosshöchstetten","nina.hadorn@bluewin.ch","nina.hadorn@bluewin.ch;",null,null,"079 456 23 36",null,null,null,null,null,null,null,null,null,"D",2001,null,null,"2020-08-28T13:41:54",43,"2021-11-10T22:18:46","907270 VBC Grosshöchstetten (1 Mandate)","U23-2 - f - VBC Grosshöchstetten, 5L - f - VBC Grosshöchstetten b",1,1,0,null,0,"2020-09-20",0,"N1",6,null,null,"Nein",0,null,"Normales Pensum",2,0]
[3163,32249,"Hebler","Stefan","Hebler Stefan","Dorfstrasse",2,null,3704,"Krattigen","stefan_hebler@bluewin.ch","stefan_hebler@bluewin.ch;","033 654 50 07",null,"079 598 45 23",null,null,null,null,null,null,null,null,null,"D",1972,null,null,"2018-10-24T18:24:00",205,"2021-08-23T20:08:42","907750 SV Strättligen (1 Mandate), 907760 MTV Strättligen VG (1 Mandate)"," -  - ",0,1,0,null,0,null,0,"N3",2,null,null,"Nein",0,null,"Doppeltes Pensum",0,0,"12.09.21 A. Sigrist: Kein Covid-Zertifikat"]
[4635,82127,"Hellstern","Salomé","Hellstern Salomé","Könizstrasse",227,null,3097,"Liebefeld","shell@bluewin.ch","shell@bluewin.ch;","026 670 36 05",null,"076 297 03 43",null,null,null,null,null,null,null,null,null,"D",2005,null,null,"2021-09-06T14:28:34",125,"2021-11-10T07:47:00","907345 Volley Köniz (1 Mandate)","2L - f - Volley Köniz, 3L - f - Volley Köniz",1,0,0,null,0,"2021-09-18",0,"N1",6,null,null,"Nein",0,null,"Normales Pensum",5,0,"Ich würde gerne auch Spiele, welche nach einem Spiel meiner Mannschaft stattfinden pfeifen. Zudem wäre ich auch parat doppelte Einsätze zu machen, Zum Beispiel 2 Spiele nacheinander pfeifen."]
[3609,67805,"Herrera Sotolongo","Gilberto","Herrera Sotolongo Gilberto","Eichholzweg ",23,null,3053,"Lätti","gilbertkuba@icloud.com","gilbertkuba@icloud.com;",null,null,"079 368 52 32",null,null,null,null,null,null,null,null,null,"D",1978,null,null,"2018-06-10T19:24:44",158,"2021-11-05T21:17:18","907458 U60 Muristalden (1 Mandate)",null,0,1,0,null,0,"2017-09-03",0,"N2",2,null,null,"Nein",0,null,"Normales Pensum",0,0,"Achtung Spesenberechnung (>900km) (Postadresse: Tiergarten 25, 3400 Burgdorf) (Für Spesen Adresse auf Tiergarten 1 ändern - A. Sigrist 08.01.2019)"]
[4634,61525,"Hertig","Riana","Hertig Riana","Oberdorfstrasse",22,null,3510,"Konolfingen","riana.hertig14@gmx.ch","riana.hertig14@gmx.ch;",null,null,"076 407 03 63",null,null,null,null,null,null,null,null,null,"D",1999,null,null,"2021-08-23T09:40:49",86,"2021-11-04T17:51:20","907350 VBC Konolfingen (1 Mandate)","4L - f - VBC Konolfingen",0,1,0,null,0,"2021-09-18",0,"N1",6,null,null,"Nein",0,null,"Normales Pensum",4,0,"Kommt auf die Anfahrtszeit drauf an. Kann 18:45 von Zuhause aus gehen. Am besten unter der Woche pfeiffen."]
[4178,88147,"Hess","Sara","Hess Sara","Mittelstrasse","30B",null,3613,"Steffisburg","sarelhe@gmail.com","sarelhe@gmail.com;",null,null,"076 556 66 85",null,null,null,null,null,null,null,null,null,"D",2001,null,null,"2020-08-26T21:09:10",30,"2021-11-08T08:25:35","907750 SV Strättligen (0.5 Mandate)","5L - f - SV Strättligen a",1,0,0,null,0,"2019-09-07",0,"N1",5,null,null,"Nein",0,null,"Halbes Pensum",4,2,"Ich Arbeite in der Pflege also weis ich meinen Dienstplan immer erst 2 Monate im Voraus."]
[4181,35010,"Hettiger","Fabienne","Hettiger Fabienne","Dianaweg",1,null,3097,"Liebefeld","fabienne1@bluewin.ch","fabienne1@bluewin.ch;",null,null,"079 313 84 34",null,null,null,null,null,null,null,null,null,"D",1992,null,null,"2021-05-07T10:18:24",93,"2021-11-02T17:55:30","907820 VBC Uni Bern  (0.5 Mandate)","5L - f - VBC Uni Bern",1,1,0,null,0,"2019-09-01",0,"N1",3,"N1",3,"Nein",0,null,"Halbes Pensum",2,0,"Arbeitszeiten sind unregelmässig."]
[4006,86333,"Hirsbrunner","Dominik","Hirsbrunner Dominik","Maulbeerstrasse",17,null,3011,"Bern","dominik.hirsbrunner@bluewin.ch","dominik.hirsbrunner@bluewin.ch;",null,null,"079 947 89 01",null,null,null,null,null,null,null,null,null,"D",1995,null,null,"2021-06-01T13:18:24",21,"2021-11-08T21:10:42","907450 VBC Münchenbuchsee (1 Mandate)","3L - m - VBC Münchenbuchsee b",1,1,0,null,0,null,0,"N1",5,null,null,"Nein",0,null,"Normales Pensum",7,0]
[3212,119710,"Hirschi","Adrian","Hirschi Adrian","Räbmatt","43C",null,3020,"Bern","hirschi.adi@bluewin.ch","hirschi.adi@bluewin.ch;",null,null,"079 215 48 12",null,null,null,null,null,null,null,null,null,"D",1975,null,null,"2019-07-29T13:25:29",97,"2021-10-24T20:27:29","907620 Volleyball Papiermühle (1 Mandate)","4L - m - Volleyball Papiermühle",1,1,0,null,0,null,0,"N3",2,null,null,"Nein",0,null,"Normales Pensum",0,0]
[3150,47228,"Holl","Annetta","Holl Annetta","Wabersackerstrasse ",86,null,3097,"Liebefeld","annetta.holl@gmail.com","annetta.holl@gmail.com;",null,null,"076 503 63 00",null,null,null,null,null,null,null,null,null,"D",1988,null,null,"2021-06-28T22:49:55",73,"2021-11-10T10:31:55","907620 Volleyball Papiermühle (1 Mandate)",null,1,1,0,null,0,null,0,"N",1,null,null,"Nein",0,null,"Normales Pensum",0,0]
[3109,44593,"Honegger","Anna-Lisa","Honegger Anna-Lisa","Kirchbühlstrasse",12,null,3672,"Oberdiessbach","anna-lisa.honegger@bluewin.ch","anna-lisa.honegger@bluewin.ch;","031 771 00 48",null,"079 917 80 10",null,null,null,null,null,null,null,null,null,"D",2000,null,null,"2020-05-05T15:07:14",103,"2021-11-10T12:37:24","907465 Volley Oberdiessbach (1 Mandate)","1L - f - Volley Oberdiessbach ",1,1,0,null,0,null,0,"N3",2,null,null,"Nein",0,null,"Normales Pensum",0,0]
[4457,107712,"Honegger","Peter","Honegger Peter","Kirchbühlstrasse",12,null,3672,"Oberdiessbach","peter.honegger@gymkirchenfeld.ch","peter.honegger@gymkirchenfeld.ch;","031 771 00 48",null,"079 376 93 06",null,null,null,null,null,null,null,null,null,"D",1960,null,null,"2020-08-04T23:13:46",80,"2021-11-08T12:57:15","907465 Volley Oberdiessbach (1 Mandate)",null,1,1,0,null,0,"2020-09-20",0,"N1",6,null,null,"Nein",0,null,"Normales Pensum",5,0,null,"Donnerstag und Freitag geht nicht"]
[4633,118844,"Hostettler","Stefanie","Hostettler Stefanie","Beundengässli",12,null,2564,"Bellmund","stefaniehostettler@gmx.ch","stefaniehostettler@gmx.ch;",null,null,"078 605 64 05",null,null,null,null,null,null,null,null,null,"D",1976,null,null,"2019-08-24T05:48:53",23,"2021-11-11T10:16:58","907005 Aarberg Volero (1 Mandate)","3L - f - Volero Aarberg a",1,1,0,null,0,"2021-08-29",0,"N1",6,null,null,"Nein",0,null,"Normales Pensum",5,2,"Wäre es allenfalls möglich monatsweise die Spiele zuzuteilen? Ich habe drei kleine Kinder und mein Mann hat unregelmässige Arbeitszeiten. Er bekommt seinen Einsatzplan jeweils am 25. der Vormonats. Könnte ich z.B. am 25. September die Absenezen eintragen und dann gäbe es Einsätze an den freien Tagen im September? Dann wieder am 25. Oktober, 25. November etc.  Falls ihr die Möglichkeit prüfen könntet, wäre das wunderbar.  Stefanie ","Bitte mehrheitlich in der Vorrunde planen, weil ich ab Februar wahrscheinlich nicht mehr im Kanton Bern leben werde..."]
[3883,75096,"Hovhannisyan","Mamikon","Hovhannisyan Mamikon","Langenthalstrasse",15,null,4950,"Huttwil","mamikonarus@mail.ru",{"$f":"CONCATENATE(K67,\";\")","v":"mamikonarus@mail.ru;"},null,null,"077 969 56 48",null,null,null,null,null,null,null,null,null,"D",1973,null,null,"2021-09-11T09:04:41",18,"2021-11-12T00:20:54","907925 Regio Volleyteam (0.5 Mandate)",null,1,1,0,null,0,null,3,"N1",3,null,null,"Nein",0,null,"Halbes Pensum",1,0]
[3965,52488,"Imhof","Soraya",{"$f":"CONCATENATE(C68,\" \",D68)","v":"Imhof Soraya"},"Lerchenfeldstrasse","43c",null,3603,"Thun","soraya.imhof@outlook.com","soraya.imhof@outlook.com;",null,null,"077 471 68 65",null,null,null,null,null,null,null,null,null,"D",1999,null,null,"2019-09-17T15:06:38",133,"2021-11-11T19:38:30","907800 VBC Thun (0.5 Mandate)","3L pro - f - VBC Thun b",1,1,0,null,0,null,0,"N1",4,null,null,"Nein",0,null,"Halbes Pensum",1,0,null,"RSK: Arztzeugnis für Abwensenheit."]
[4632,72473,"Iseli","Andrea","Iseli Andrea","Allenwindli",156,null,4954,"Wyssachen","andreaiseli@gmx.ch","andreaiseli@gmx.ch;",null,null,"077 427 03 99",null,null,null,null,null,null,null,null,null,"D",2001,null,null,"2021-09-17T13:33:59",124,"2021-11-11T22:50:39","907925 Regio Volleyteam (1 Mandate)","3L pro - f - Regio Volleyteam a",0,1,0,null,0,"2021-09-12",0,"N1",6,null,null,"Nein",0,null,"Normales Pensum",2,0,null,"Mir sind Einsätze unter der Woche grundsätzlich nicht möglich, da ich arbeiten muss. "]
[4443,85189,"Jaun","Tamara","Jaun Tamara","Schützenweg",29,null,3600,"Thun","jauntamara@gmx.ch","jauntamara@gmx.ch;",null,null,"079 153 64 50",null,null,null,null,null,null,null,null,null,"D",2004,null,null,"2020-08-31T19:54:56",135,"2021-11-09T20:59:57","907800 VBC Thun (1 Mandate)","U23-2 - f - VBC Thun a, 3L - f - VBC Thun d",1,1,0,null,0,"2020-09-20",0,"N1",6,null,null,"Nein",0,null,"Normales Pensum",3,0,"Handynummer: 079 153 64 50"]
[4732,67897,"Jehle","Belinda","Jehle Belinda","Fellerstrasse","44c",null,3027,"Bern","jehle.belinda@gmail.com","jehle.belinda@gmail.com;","+423 233 43 23",null,"+423 781 29 01",null,null,null,null,null,null,null,null,null,"D",2001,null,null,"2021-09-06T14:27:59",86,"2021-11-04T22:21:26","907620 Volleyball Papiermühle (1 Mandate)","3L pro - f - Volleyball Papiermühle a",1,0,0,null,0,null,0,"N1",6,null,null,"Nein",0,null,"Normales Pensum",4,0]
[4444,98029,"Jeyaprakash","Akalya","Jeyaprakash Akalya","Stapfenstrasse",55,null,3018,"Bern","aakaalyaa@gmail.com","aakaalyaa@gmail.com;",null,null,"078 897 96 58",null,null,null,null,null,null,null,null,null,"D",2004,null,null,"2021-05-21T21:25:10",48,"2021-11-01T19:51:01","907730 STB Volley (1 Mandate)",null,1,0,0,null,0,"2020-09-20",0,"N1",6,null,null,"Nein",0,null,"Normales Pensum",5,0,"Dienstags geht nicht."]
[3206,24355,"Kammer","Michelle","Kammer Michelle","Weissensteinstrasse","22a",null,3008,"Bern","michelle.kammer@bluewin.ch","michelle.kammer@bluewin.ch;",null,null,"079 863 75 35",null,null,null,null,null,null,null,null,null,"D",1994,null,null,"2021-10-15T11:20:33",90,"2021-11-07T08:03:48","907440 VBC Münsingen (1 Mandate)","1L - f - VBC Münsingen",1,0,0,null,0,null,0,"N3",2,null,null,"Nein",0,null,"Normales Pensum",1,0]
[4631,100496,"Kellenberger","Elias","Kellenberger Elias","Flurweg",10,null,3315,"Kräiligen","elias.indoorvolley@gmail.com","elias.indoorvolley@gmail.com;",null,null,"078 627 78 91",null,null,null,null,null,null,null,null,null,"D",2001,null,null,"2021-10-26T23:57:10",88,"2021-10-30T10:52:32","907200 VBC Burgdorf (1 Mandate)","U23-2 - m - VBC Burgdorf, 3L - m - VBC Burgdorf",1,0,0,null,0,"2021-09-12",0,"N1",6,null,null,"Nein",0,null,"Normales Pensum",5,0,null,"Trainer bei U20 - m - VBC Thun -> kann nicht erfasst werden (max. 3 Teams möglich)"]
[4428,82512,"Kohler","Angela","Kohler Angela","Seedorfweg",98,null,3053,"Münchenbuchsee","angelakohler31@gmail.com","angelakohler31@gmail.com;",null,null,"079 103 29 59",null,null,null,null,null,null,null,null,null,"D",2003,null,null,"2021-09-06T07:20:27",86,"2021-11-12T00:15:23","907450 VBC Münchenbuchsee (1 Mandate)",null,1,1,0,null,0,"2020-09-20",0,"N1",6,null,null,"Nein",0,null,"Normales Pensum",6,0,null,"Spiele unter der Woche Region Bern und nähere Umgebung. Spiele unter der Woche im Oberland nicht möglich. Generell im Moment Spiele von Montag bis Donnertag nur in Notfällen möglich. Ab Freitag bis Sonntag normal möglich."]
[2926,4388,"Koller","Markus","Koller Markus","Chutzeweg",4,null,3309,"Kernenried","mk@kilep.ch","mk@kilep.ch;","031 767 81 64",null,"079 312 39 36",null,null,null,null,null,null,null,null,null,"D",1951,null,null,"2017-11-26T12:46:35",null,"2021-11-09T17:52:25",null,null,1,1,0,null,0,null,0,"RD",null,null,null,"Nein",0,null,"Normales Pensum",0,0,null,"Habe im Moment kein Mandat"]
[3083,47126,"Koller","Sven","Koller Sven","Eigerstrasse",20,null,3007,"Bern","svenkoller@hotmail.ch","svenkoller@hotmail.ch;",null,null,"076 421 89 94",null,null,null,null,null,null,null,null,null,"D",1991,null,null,"2020-09-21T10:01:01",115,"2021-11-10T13:31:08","907450 VBC Münchenbuchsee (2 Mandate)","5L - f - TV Länggasse Bern, 3L - m - VBC Münchenbuchsee a, 3L - f - Satus Köniz",1,0,0,null,0,null,0,"N3",2,null,null,"Nein",0,null,"Doppeltes Pensum",3,0]
[3972,77196,"Konrad","Leandra","Konrad Leandra","Bühlgässli",6,null,3700,"Spiez","leandra.konrad@gmail.com","leandra.konrad@gmail.com;","033 335 35 21",null,"079 945 77 20",null,null,null,null,null,null,null,null,null,"D",2002,null,null,"2021-09-01T18:23:40",38,"2021-10-22T18:56:51","907720 VBC Spiez (1 Mandate)",null,1,0,0,null,0,null,0,"N1",4,null,null,"Nein",0,null,"Normales Pensum",6,0,"Ich erhalte jede Woche einen neuen Plan und dieser varriert stark, wann das ich eingesetzt werden kann. Ich wäre jedoch froh wenn ich viele Matche in Frutigen übernehmen könnte, da ich dort arbeite."]
[3637,92521,"Kovatsch","Stephanie","Kovatsch Stephanie","Haselweg",10,null,3700,"Spiez","stephanie.michel9@gmail.com","stephanie.michel9@gmail.com;",null,null,"079 732 58 78",null,null,null,null,null,null,null,null,null,"D",1989,null,null,"2021-09-18T21:53:36",68,"2021-11-07T20:11:01","907152 VBC Brienz-Meiringen (0.5 Mandate)","1L - m - Volley Muristalden , 3L pro - f - VBC Brienz-Meiringen",0,1,0,null,0,null,0,"N2",3,null,null,"Nein",0,null,"Halbes Pensum",4,0,null,"Ich habe mit Michael meinen Einsatz/meine Zukunft per Mail geregelt. Habe Beförderung \"ja\" angekreuzt...."]
[4556,165505,"Krasniqi","Henriette","Krasniqi Henriette","Solothurnstrasse",2,null,2544,"Bettlach","henriettekrasniqi@gmail.com","henriettekrasniqi@gmail.com;",null,null,"078 845 45 30",null,null,null,null,null,null,null,null,null,"D",1981,null,null,"2020-10-01T13:06:03",127,"2021-08-18T10:02:59","907249 VBC Lengnau (1 Mandate)",null,1,1,0,null,0,null,0,"N1",3,null,null,"Nein",0,null,"Normales Pensum",0,0,"14.09.21 A. Sigrist: Kein Covid-Zertifikat","24.06.2020/ 1. Liga VBC Gerlafingen nur für die Heimspiele "]
[2927,144061,"Kühne","Michael","Kühne Michael","Bostudenstrasse ",10,null,3604,"Thun","michael.kuehne@vbcthun.ch","michael.kuehne@vbcthun.ch;",null,null,"078 889 86 90",null,null,null,null,null,null,null,null,null,"D",1982,null,null,"2021-10-02T16:37:18",152,"2021-11-07T10:27:00","907800 VBC Thun (2 Mandate)","1L - m - VBC Thun, 3L - m - VBC Thun, 4L - m - VBC Thun",1,0,0,null,0,null,0,"N3",2,null,null,"Nein",0,null,"Doppeltes Pensum",0,0,null,"ich möchte bei den Herren 1L nur noch als 2. Schiri eingesetzt werden (nicht als 1. Schiri)."]
[3124,45369,"Künzi","Daniel","Künzi Daniel","Bethlehemstrasse",21,null,3027,"Bern","dan.kun@bluewin.ch","dan.kun@bluewin.ch;","031 311 13 94 ",null,"078 779 66 79 ",null,null,null,null,null,null,null,null,null,"D",1959,null,null,"2017-06-11T18:35:10",107,"2021-08-25T14:25:09","907345 Volley Köniz (1 Mandate), 907520 VBC Riggisberg (1 Mandate)",null,1,0,0,null,0,null,0,"N2",3,null,null,"Nein",0,null,"Doppeltes Pensum",0,0,"Spiele unter der Woche Region Bern und nähere Umgebung. Spiele unter der Woche im Oberland nicht möglich. Generell im Moment Spiele von Montag bis Donnertag nur in Notfällen möglich. Ab Freitag bis Sonntag normal möglich."]
[3086,54195,"Kämpf","Marco","Kämpf Marco","Liebewilstrasse ",53,9,3174,"Thörishaus","marco.kaempf@volleybern-solothurn.ch","marco.kaempf@volleybern-solothurn.ch;",null,null,"079 546 23 15",null,null,null,null,null,null,null,null,null,"D",1958,null,null,"2021-09-17T14:11:09",60,"2021-11-11T09:01:08",null,null,0,1,0,null,0,null,0,"N3",2,null,null,"Nein",0,null,"Normales Pensum",0,0,"Habe im Moment kein Mandat"]
[3224,17455,"Kämpf","Melika","Kämpf Melika","Liebewilstrasse",53,9,3174,"Thörishaus","melika.ayoubi@gmail.com","melika.ayoubi@gmail.com;",null,null,"079 310 55 98",null,null,null,null,null,null,null,null,null,"D",1980,null,null,"2019-12-10T23:22:39",41,"2021-11-11T22:02:01","907456 Volley Muri Bern (1 Mandate)",null,0,1,0,null,0,null,0,"N",1,null,null,"Nein",0,null,"Normales Pensum",0,0]
[3243,105095,"Lehmann","Monika","Lehmann Monika","Melchiorstrasse","23/20",null,3027,"Bern","monikalehmann@gmx.ch","monikalehmann@gmx.ch;"," ",null,"079 276 72 44",null,null,null,null,null,null,null,null,null,"D",1969,null,null,"2021-06-11T08:35:03",91,"2021-11-12T10:14:35","907120 VBC Gerlafingen (1 Mandate)","1L - f - VBC Gerlafingen",1,1,0,null,0,null,28,"N",1,null,null,"Nein",0,null,"Normales Pensum",0,0,"11.06.2021/ 1. Liga VBC Gerlafingen nur für die Heimspiele "]
[3956,32677,"Lobsiger","Samuel","Lobsiger Samuel","Weissensteinstrasse",82,null,4515,"Oberdorf","samuel.lobsiger@hess-ag.ch","samuel.lobsiger@hess-ag.ch;",null,null,"079 919 14 84",null,null,null,null,null,null,null,null,null,"D",1984,null,null,"2021-05-31T12:20:30",142,"2021-11-03T13:00:19","907481 TSC Solothurn (1 Mandate), 907930 Volley X (1 Mandate)",null,0,1,0,null,0,null,0,"N",1,null,null,"Nein",0,null,"Doppeltes Pensum",0,0]
[4007,61090,"Longa","Matteo","Longa Matteo","Alte Bernstrasse",2,null,3036,"Detligen","matteo.longa@bluewin.ch","matteo.longa@bluewin.ch;",null,null,"079 774 46 21",null,null,null,null,null,null,null,null,null,"D",2002,null,null,"2018-09-06T20:40:15",39,"2021-11-05T10:39:43","907005 Aarberg Volero (0.5 Mandate)","3L - m - Volero Aarberg",1,1,0,null,0,null,0,"N1",3,null,null,"Nein",0,null,"Halbes Pensum",1,0,"Handy Nummer 0797744621 Spieler bei 3L - m - volero Aarberg"]
[4629,65446,"Loosli","Laura","Loosli Laura","Flühlistrasse","58B",null,3612,"Steffisburg","loosla@bluewin.ch","loosla@bluewin.ch;",null,null,null,null,null,null,null,null,null,null,null,null,"D",2000,null,null,"2021-10-13T09:12:21",105,null,null,null,1,1,0,null,0,null,0,"N1",6,null,null,"Nein",0,null,"Normales Pensum",0,0,"14.09.21 A. Sigrist: Kein Covid-Zertifikat","Da ich vom öffentlichen Verkehr und meinen Eltern abhängig bin, wäre ich froh, wenn ich nahe Matche pfeifen könnte und nicht so einen weiten Weg hätte. Ich würde am liebsten am Wochenende früh morgens oder abends pfeifen.  Unter der Woche gestaltet es sich ein wenig schwieriger. Was bedeuter Rekom-Besuch erwünscht und 1 Mandat? "]
[4445,91488,"Mani","Larissa","Mani Larissa","Fellerstrasse",8,null,3604,"Thun","larissa.mani@bluewin.ch","larissa.mani@bluewin.ch;",null,null,"079 756 48 36",null,null,null,null,null,null,null,null,null,"D",2002,null,null,"2021-05-31T20:15:43",12,"2021-11-11T17:20:39","907750 SV Strättligen (1 Mandate)","5L - f - SV Strättligen a, U23-1 - f - Volley Oberdiessbach",1,0,0,null,0,"2020-09-20",0,"N1",6,null,null,"Nein",0,null,"Normales Pensum",3,0,null,"27.08.19 Postadresse: Tromwil 12 /Spesenadresse: Holderacher 75 (Google Maps) "]
[4651,97522,"Mathieu","Leonie","Mathieu Leonie","Oberer Zelgweg",22,null,3253,"Worben","leonie.mathieu@besonet.ch","leonie.mathieu@besonet.ch;",null,null,"079 915 10 73",null,null,null,null,null,null,null,null,null,"D",2002,null,null,null,null,"2021-11-06T16:42:21","907765 VBC Studen (1 Mandate)","3L - f - VBC Studen, 5L - f - VBC Studen",1,1,0,null,0,"2021-09-18",0,"N1",6,null,null,"Nein",0,null,"Normales Pensum",6,0]
[3977,61601,"Mathys","Elin","Mathys Elin","Schlossstrasse ",10,null,3672,"Oberdiessbach","elin.mathys@gmail.com","elin.mathys@gmail.com;","031 771 01 68",null,"078 766 76 59",null,null,null,null,null,null,null,null,null,"D",2002,null,null,"2019-10-25T17:49:05",32,"2021-11-06T11:16:05","907465 Volley Oberdiessbach (0.5 Mandate)","2L - f - Volley Oberdiessbach, 3L - f - Volley Oberdiessbach, U23-1 - f - Volley Oberdiessbach",1,0,0,null,0,null,0,"N1",3,null,null,"Nein",0,null,"Halbes Pensum",2,0,null,"Aufgebote vor oder nach einem eigenen Match sowie Doppelaufgebote sind auch okay."]
[4628,108832,"Meijer","Karen","Meijer Karen","Obere Bahnhofstrasse",62,null,3700,"Spiez","karenmeijer@outlook.com","karenmeijer@outlook.com;",null,null,"078 406 23 24",null,null,null,null,null,null,null,null,null,"D",2004,null,null,"2021-09-06T14:25:23",122,"2021-10-24T18:59:17","907720 VBC Spiez (1 Mandate)","U23-3 - f - VBC Spiez",1,0,0,null,0,"2021-08-29",0,"N1",6,null,null,"Nein",0,null,"Normales Pensum",3,0,"Für Spiele unter der Woche, muss ich aus Interlaken(Schule) kommen. Wenn es möglich ist, dies bitte mit der Reisezeit berücksichtigen. (Schule bis 16:45). Mittwochs bin ich frei.   Bitte keine Herren Spiele. "]
[4627,72829,"Messer","Julia","Messer Julia","Kappelenstrasse ","5a",null,3270,"Aarberg","jul.mes@bluewin.ch","jul.mes@bluewin.ch;",null,null,"079 233 05 05",null,null,null,null,null,null,null,null,null,"D",2004,null,null,"2019-08-28T12:39:37",101,"2021-10-22T22:16:02","907005 Aarberg Volero (1 Mandate)",null,1,0,0,null,0,"2021-08-29",0,"N1",6,null,null,"Nein",0,null,"Normales Pensum",2,0,"Ich habe an meines Prüfung gesagt, dass ich auch 3. Liga Damen und 4. Liga Herren pfeifen würde, jedoch würde ich trotzdem lieber nur die 5. und 4. Liga der Frauen pfeifen in der 1. Saison als Schiedsrichter","17.08.2020:  Ich bin zusätzlich Trainer beim VBC Kerzers, dieser konnte ich jedoch nicht hinterlegen, da dieser im Kanton Freiburg liegt. Aktueller Trainingstag: Donnerstag Heimspiele: Samstag ab 13 Uhr  Ich arbeite im Gastgewerbe und bin an den Wochenenden meistens eingespannt. Schiri-Einsätze sind für mich an den Wochenenden nur vereinzelt möglich.  Ich werde nach der Einteilung (wie letztes Jahr) aktiv die Schiri-Spielbörse bearbeiten und weitere Spiele übernehmen, die mit meiner Agenda kompatibel sind (letzte Saison kam ich dadurch auf 15 Einsätze). Wenn ich dieses Saison die Spiele wieder grösstenteils selber planen und mit meiner Agenda  abgleichen kann, ist es mir wahrscheinlich auch in dieser Saison wieder möglich, mehr als 1 Mandat zu pfeifen. "]
[3571,59256,"Messerli","Noemi","Messerli Noemi","Chemin des Epinettes",55,null,1723,"Marly","messerlinumi@gmail.com","messerlinumi@gmail.com;",null,null,"077 413 40 50",null,null,null,null,null,null,null,null,null,"D",2001,null,null,"2021-10-14T16:51:37",8,"2021-11-11T16:05:04","907520 VBC Riggisberg (2 Mandate)",null,1,0,0,null,0,"2017-09-03",0,"N2",3,null,null,"Nein",0,null,"Doppeltes Pensum",2,0,"Neuer Wohnort: Chemin des Epinettes 55, 1723 Marly (Fribourg)"]
[4626,53090,"Miescher","Yara","Miescher Yara","Kürzestrasse",21,null,4562,"Biberist","yara.miescher@students.unibe.ch","yara.miescher@students.unibe.ch;",null,null,"079 917 38 01",null,null,null,null,null,null,null,null,null,"D",1998,null,null,"2021-08-29T14:47:35",33,"2021-11-10T10:24:41","907920 VBC Langenthal (1 Mandate)","3L - f - Volero Aarberg b, U23-3 - f - VBC Langenthal",1,1,0,null,0,"2020-09-20",0,"N1",6,null,null,"Nein",0,null,"Normales Pensum",5,0]
[4450,102233,"Mohammadi","Mohammad","Mohammadi Mohammad","Weieneggstrasse",11,null,3612,"Steffisburg","m.kurde2004@gmail.com","m.kurde2004@gmail.com;",null,null,"076 261 80 70",null,null,null,null,null,null,null,null,null,"D",2004,null,null,"2021-10-12T02:11:46",19,"2021-11-11T23:14:12","907800 VBC Thun (1 Mandate)","4L - m - VBC Thun",1,0,0,null,0,"2020-09-20",0,"N1",5,null,null,"Nein",0,null,"Normales Pensum",6,0]
[4430,66764,"Müller","Dina","Müller Dina","Zeltnerweg",9,null,4500,"Solothurn","dina@zeltnerweg9.ch","dina@zeltnerweg9.ch;",null,null,"079 368 42 21",null,null,null,null,null,null,null,null,null,"D",2002,null,null,"2021-07-24T13:24:34",93,"2021-10-20T16:15:46","907926 Volley Solothurn (1 Mandate)","1L - f - Volley Solothurn, 3L pro - f - Volley Solothurn a, 5L - f - Volley Solothurn  c",1,0,0,null,0,"2020-09-20",0,"N1",6,null,null,"Nein",0,null,"Normales Pensum",3,2,"Aufgebote vor oder nach einem eigenen Match sowie Doppelaufgebote sind kein Problem für mich."]
[4170,85660,"Müller","Roger","Müller Roger","Birkenweg",11,null,3267,"Seedorf","volleyball@muellerservices.ch","volleyball@muellerservices.ch;","032 392 81 33",null,"079 458 89 00",null,null,null,null,null,null,null,null,null,"D",1969,null,null,"2021-10-11T09:12:01",114,"2021-11-10T17:18:11","907400 VBC Lyss (1 Mandate)","4L - f - VBC Lyss",0,1,0,null,0,"2019-09-15",0,"N1",5,null,null,"Nein",0,null,"Normales Pensum",13,0,"23.08.2021:  Ich bin zusätzlich Trainer beim VBC Kerzers, dieser konnte ich jedoch nicht hinterlegen, da dieser im Kanton Freiburg liegt. Aktueller Trainingstag: Donnerstag Heimspiele: Samstag ab 12 Uhr  Ich arbeite im Gastgewerbe und bin an den Wochenenden meistens eingespannt. Schiri-Einsätze sind für mich an den Wochenenden nur vereinzelt möglich.  Ich werde nach der Einteilung (wie letztes Jahr) aktiv die Schiri-Spielbörse bearbeiten und weitere Spiele übernehmen, die mit meiner Agenda kompatibel sind (letzte Saison kam ich dadurch auf 15 Einsätze). Wenn ich dieses Saison die Spiele wieder grösstenteils selber planen und mit meiner Agenda  abgleichen kann, ist es mir wahrscheinlich auch in dieser Saison wieder möglich, mehr als 1 Mandat zu pfeifen. ","ich arbeite als Lokführerin und kann mir vieles einrichten da ich im Schichtbetrieb bin. die angegebenen Zeiten sind Richtwerte damit es meiner Einteilung bei der SBB etwas einfacher geht. Bitze max. 15 Spiele."]
[3097,13631,"Nenniger","Noëmi","Nenniger Noëmi","Dalmaziquai ",49,null,3005,"Bern","noemi.nenniger@bluewin.ch","noemi.nenniger@bluewin.ch;",null,null,"077 406 77 62 ",null,null,null,null,null,null,null,null,null,"D",1991,null,null,"2019-10-07T08:20:40",79,"2021-11-12T08:34:52","907465 Volley Oberdiessbach (1 Mandate)","1L - f - Volley Oberdiessbach ",1,1,0,null,0,null,0,"N3",2,null,null,"Nein",0,null,"Normales Pensum",1,0]
[4447,100494,"Nydegger","Zora","Nydegger Zora","Ralligweg",12,null,3012,"Bern","nydegger.zora@gmail.com","nydegger.zora@gmail.com;",null,null,"079 311 81 44",null,null,null,null,null,null,null,null,null,"D",2004,null,null,"2021-09-06T14:25:00",null,"2021-11-07T16:00:31","907345 Volley Köniz (1 Mandate)",null,1,0,0,null,0,"2020-09-20",0,"N1",6,null,null,"Nein",0,null,"Normales Pensum",5,0,null,"Iam also a line judge  Work in Niederwangen  by Bern could if need be go direct from there"]
[3896,30176,"Nyffenegger","Maya","Nyffenegger Maya","Dahlienstrasse",14,null,4563,"Gerlafingen","famnyffenegger@bluemail.ch","famnyffenegger@bluemail.ch;","032 675 19 57",null,"076 336 73 48",null,null,null,null,null,null,null,null,null,"D",1966,null,null,"2020-08-20T12:47:19",95,"2021-11-08T23:24:00","907120 VBC Gerlafingen (1 Mandate)","1L - f - VBC Gerlafingen, U17-2 - f - VBC Gerlafingen",0,1,0,null,0,null,30,"N2",3,null,null,"Nein",0,null,"Normales Pensum",4,0,"Spieler bei/Trainer bei: 1L - f- VBC Gerlafingen U17-2 - f - VBC Gerlafingen   WICHTIG !!!!!  Ich kann es anklicken, aber sobald ich speichern drücke, fällt es raus."]
[4451,80276,"Oertle","Jannis","Oertle Jannis","Niesenstrasse",19,null,3506,"Grosshöchstetten","jannoe@bluewin.ch","jannoe@bluewin.ch;",null,null,"077 483 23 62",null,null,null,null,null,null,null,null,null,"D",2003,null,null,"2020-08-28T16:39:52",17,"2021-11-10T10:12:09","907465 Volley Oberdiessbach (1 Mandate)","4L - m - Volley Oberdiessbach, U23-2 - m - Volley Oberdiessbach",1,0,0,null,0,"2020-09-20",0,"N1",6,null,null,"Nein",0,null,"Normales Pensum",2,2]
[4650,61330,"Oester","Erina","Oester Erina","Turrenmattenstrasse","4 E",null,3860,"Meiringen","oestererina@gmail.com","oestererina@gmail.com;",null,null,"079 260 61 29",null,null,null,null,null,null,null,null,null,"D",2000,null,null,"2021-09-12T22:05:51",67,"2021-11-04T06:57:02","907152 VBC Brienz-Meiringen (1 Mandate)",null,0,1,0,null,0,"2021-08-29",0,"N1",6,null,null,"Nein",0,null,"Normales Pensum",4,0,null,"Darf diese Saison nicht spielen, kann an unseren Matchdaten auch pfeiffen  A. Sigrist, 28.08.2020: Spielerin bei VBC Langenthal 3. Liga pro, extra nicht eingetragen."]
[3169,47127,"Olberg","Patrick","Olberg Patrick","Südstrasse ",8,null,4922,"Bützberg","p.olberg@gmx.ch","p.olberg@gmx.ch;",null,null,"076 305 88 45",null,null,null,null,null,null,null,null,null,"D",1990,null,null,"2020-12-05T13:06:46",105,"2021-11-07T13:03:42","907456 Volley Muri Bern (1 Mandate)","2L - m - VBC Langenthal, 3L - f - VG Rüdtligen ",0,1,0,null,0,null,0,"N2",2,null,null,"Nein",0,"907450 | VBC Münchenbuchsee","Normales Pensum",3,0,"Nur 1 Spiel pro Wochenende (Samstag oder Sonntag). Münchenbuchsee nicht. Egal ob Heim- oder Gast. Möglichst viele Spiele 1L um Erfahrungen zu sammeln. Arbeite in Langenthal bis mind. 18.00 Uhr. Daher erst ab 18.30Uhr einplanen.  2. Mandat noch unsicher."]
[4431,26672,"Oppliger","Janina","Oppliger Janina","Wendelinweg ",3,null,4613,"Rickenbach","janina.oppliger@hispeed.ch","janina.oppliger@hispeed.ch;",null,null,"076 339 91 36",null,null,null,null,null,null,null,null,null,"D",1995,null,null,"2021-02-16T16:05:48",79,"2021-10-27T19:41:36","907181 Hägendorf TUS (1 Mandate)","3L - f - Hägendorf TUS",1,1,0,null,0,"2020-09-20",0,"N1",6,null,null,"Nein",0,null,"Normales Pensum",2,0,"ich arbeite als Lokführerin und kann mir vieles einrichten da ich im Schichtbetrieb bin. die angegebenen Zeiten sind Richtwerte damit es meiner Einteilung bei der SBB etwas einfacher geht. Bitze max. 15 Spiele."]
[4182,66222,"Ossola","Natalie","Ossola Natalie","Seidenweg",61,null,3012,"Bern","natalie.ossola@hotmail.com","natalie.ossola@hotmail.com;",null,null,"079 711 60 52",null,null,null,null,null,null,null,null,null,"D",1992,null,null,"2019-10-01T13:29:14",89,"2021-11-04T07:12:41","907820 VBC Uni Bern  (0.5 Mandate)","4L - f - VBC Uni Bern",1,0,0,null,0,"2019-09-01",0,"N1",3,"N1",3,"Nein",0,null,"Halbes Pensum",2,0]
[4625,67454,"Ottiger","Alicia","Ottiger Alicia","Bernstrasse",13,null,4950,"Huttwil","ottiger.alicia@outlook.com","ottiger.alicia@outlook.com;",null,null,"079 351 37 21",null,null,null,null,null,null,null,null,null,"D",1999,null,null,"2021-09-17T13:30:29",37,"2021-11-10T17:58:48","907925 Regio Volleyteam (1 Mandate)","3L - f - Regio Volleyteam b",1,1,0,null,0,"2021-09-12",0,"N1",6,null,null,"Nein",0,null,"Normales Pensum",5,0]
[3242,202087,"Palmer","Gavin","Palmer Gavin","Wiedlisbachstrasse",16,null,4538,"Oberbipp","gavinpalmer@bluewin.ch","gavinpalmer@bluewin.ch;","079 823 09 58",null,"079 823 09 58",null,null,null,null,null,null,null,null,null,"D",1959,null,null,"2018-09-09T19:43:41",113,"2021-10-28T14:09:07","907926 Volley Solothurn (1 Mandate)","U19-3 - f - Volley Solothurn",0,1,0,null,0,null,0,"N2",3,null,null,"Nein",0,null,"Normales Pensum",3,0,"Iam also a line judge  Work in Niederwangen  by Bern could if need be go direct from there"," Ich arbeite am Samstag bis 18:00! Sonntag kann ich um jede Zeit  Wichtig: ich möchte keine Match des folgenden Team‘s pfeiffen. 3liga Herren Vollesolothurn"]
[3615,89744,"Petkovic","Slavisa","Petkovic Slavisa","Eystrasse","63C",null,3422,"Kirchberg BE","slavisapetkovic7@gmail.com","slavisapetkovic7@gmail.com;",null,null,"079 233 23 03",null,null,null,null,null,null,null,null,null,"D",1981,null,null,"2018-11-26T16:41:02",1,"2021-11-07T23:00:04","907390 VBC Lützelflüh (1.5 Mandate)",null,1,1,0,null,0,null,0,"N",1,null,null,"Nein",0,null,"1½ Pensum",0,0]
[3186,57816,"Pfau","David","Pfau David","Gwattstrasse",83,null,3645,"Gwatt","dpfau1@gmx.ch","dpfau1@gmx.ch;",null,null,"078 611 85 51",null,null,null,null,null,null,null,null,null,"D",1998,null,null,"2021-10-13T09:06:56",38,"2021-11-10T15:26:13","907800 VBC Thun (1 Mandate)","3L - m - VBC Thun",1,1,0,null,0,null,0,"N1",3,null,null,"Nein",0,null,"Normales Pensum",3,2]
[3185,106356,"Pfau","Matthias","Pfau Matthias","Hagacherweg","17D",null,3608,"Thun","pfau1@gmx.ch","pfau1@gmx.ch;",null,null,"078 681 09 74",null,null,null,null,null,null,null,null,null,"D",1966,null,null,"2020-10-27T12:43:58",57,"2021-11-09T16:12:44","907800 VBC Thun (0.5 Mandate)",null,1,1,0,null,0,null,0,"N3",2,null,null,"Nein",0,null,"Halbes Pensum",4,0]
[3898,38521,"Pfister","Michelle","Pfister Michelle","Mumenthalstrasse","35c",null,4912,"Aarwangen","michelle.pfister@gmx.ch","michelle.pfister@gmx.ch;",null,null,"077 466 45 55",null,null,null,null,null,null,null,null,null,"D",1996,null,null,"2019-10-22T08:36:48",19,"2021-11-11T17:34:05","907920 VBC Langenthal (2 Mandate)",null,1,1,0,null,0,null,2,"N3",2,null,null,"Nein",0,null,"Doppeltes Pensum",1,0,"23.08.2021 aktiv noch keine Spielerlizenz, kann auch an Matchdaten pfeiffen","Ich arbeite in der Pflege und kann deshalb unter der Woche auch Spätschicht haben und dann nicht pfeifen, da diese bis 23:00 Uhr geht. "]
[4176,79512,"Reichenbach","Kimberly","Reichenbach Kimberly","Allmendstrasse",5,null,3600,"Thun","kimberly.reichenbach98@gmail.com","kimberly.reichenbach98@gmail.com;",null,null,"079 387 33 48",null,null,null,null,null,null,null,null,null,"D",1998,null,null,"2021-10-12T21:24:47",15,"2021-11-10T12:32:42","907620 Volleyball Papiermühle (1 Mandate), 907810 VC Uettligen (1 Mandate)",null,1,1,0,null,0,"2019-09-01",0,"N1",5,null,null,"Nein",0,null,"Doppeltes Pensum",11,2,"Da ich letzte Saison kein Spiel gepfiffen habe und auch nicht spielen konnte, wäre ich froh, wenn ich sicherlich in der ersten Hälfte \"nur\" 5. Liga und 4. Liga Spiele pfeiffen kann. "]
[4432,75911,"Reinhard","Chantal","Reinhard Chantal","Hofmeisterstrasse",11,null,3006,"Bern","chantal.reinhard@hotmail.com","chantal.reinhard@hotmail.com;",null,null,"079 630 99 26",null,null,null,null,null,null,null,null,null,"D",1994,null,null,"2020-08-18T12:15:02",21,"2021-11-06T17:45:38","907249 VBC Lengnau (1 Mandate)",null,1,0,0,null,0,"2020-09-20",0,"N1",6,null,null,"Nein",0,null,"Normales Pensum",2,0]
[4648,105627,"Rentsch","Madlen","Rentsch Madlen","Kirchmattestrasse ",3,null,3555,"Trubschachen","madlenrentsch88@outlook.de","madlenrentsch88@outlook.de;",null,null,"079 170 26 60",null,null,null,null,null,null,null,null,null,"D",2000,null,null,"2021-08-26T10:59:13",38,"2021-11-09T11:50:47","907370 VT Langnau (1 Mandate)","5L - f - VT Langnau",0,1,0,null,0,"2021-09-18",0,"N1",6,null,null,"Nein",0,null,"Normales Pensum",3,0,"Meine Handy Nummer ist 0791702660"]
[4624,44596,"Ritzi","Steven","Ritzi Steven","Thunstrasse","2C",null,3400,"Burgdorf","steven.ritzi@gmail.com","steven.ritzi@gmail.com;",null,null,"077 405 16 08",null,null,null,null,null,null,null,null,null,"D",1999,null,null,"2021-09-17T13:31:05",79,"2021-11-12T10:33:36","907200 VBC Burgdorf (1 Mandate)","U23-3 - f - VBC Burgdorf, 3L - m - VBC Burgdorf",1,1,0,null,0,"2021-09-18",0,"N1",6,null,null,"Nein",0,null,"Normales Pensum",7,0,"Am Sonntag kann ich keine Spiele pfeiffen"]
[3709,156340,"Roth","Dominique","Roth Dominique","Känelmoosstrasse",24,null,2545,"Selzach","domiroth27@gmx.ch","domiroth27@gmx.ch;",null,null,"079 506 21 31",null,null,null,null,null,null,null,null,null,"D",1982,null,null,"2021-10-04T16:15:37",101,"2021-11-02T14:44:30","907150 TV Grenchen (1.5 Mandate)","3L pro - f - TV Grenchen",0,1,0,null,0,null,20,"N3",2,null,null,"Nein",0,null,"1½ Pensum",3,2," Ich arbeite am Samstag bis 18:00! Sonntag kann ich um jede Zeit ","Sehr gerne Freitag Abend z.B. Muristalden, wenn ich nicht selber spiele ;)"]
[4360,6580,"Rubin","Hansruedi","Rubin Hansruedi","Rötimatte ",1,null,3422,"Kirchberg","hr.rubin@gmx.ch","hr.rubin@gmx.ch;",null,null,null,null,null,null,null,null,null,null,null,null,"D",1943,null,null,"2009-02-11T16:25:30",null,"2020-09-10T20:36:05",null,null,1,1,0,null,0,null,0,"RD",null,null,null,"Nein",0,null,"Normales Pensum",0,0,null,"Spielerin bei 3L - f - VBC Herzogenbuchsee"]
[3081,182999,"Ryser","Fabienne","Ryser Fabienne","Leutschenstrasse",5,null,3038,"Kirchlindach","fabienne.ryserwittwer@gmail.com","fabienne.ryserwittwer@gmail.com;",null,null,"079 706 17 84",null,null,null,null,null,null,null,null,null,"D",1985,null,null,"2021-09-16T22:41:51",165,"2021-11-08T16:27:31","907360 TV Länggasse Bern (0.5 Mandate)",null,1,1,0,null,0,null,0,"N3",2,null,null,"Nein",0,null,"Halbes Pensum",0,0,null,"- Gerne an Samstagen, zwei Matches am gleichen Ort.  - Ich werde am Berner Cup nur sehr sparsam, wenn überhaupt     mitmachen, wegen einigen unerfreulichen Erfahrungen ...  - Matches an So, bitte nur in Ausnahmefällen"]
[4433,89752,"Rösselet","Sara","Rösselet Sara","Neumattstrasse",52,null,3400,"Burgdorf","saroe.02@gmail.com","saroe.02@gmail.com;",null,null,"077 453 10 47",null,null,null,null,null,null,null,null,null,"D",2002,null,null,"2021-06-14T23:17:41",22,"2021-11-11T18:29:41","907200 VBC Burgdorf (1 Mandate)","3L - f - VBC Burgdorf b, 4L - f - VBC Burgdorf ",1,1,0,null,0,"2020-09-20",0,"N1",6,null,null,"Nein",0,null,"Normales Pensum",7,0]
[4174,66911,"Sahli","Andrine","Sahli Andrine","Blattackerstrasse",4,null,3662,"Seftigen","andrine.sahli@gmail.com","andrine.sahli@gmail.com;",null,null,"079 197 45 77",null,null,null,null,null,null,null,null,null,"D",2000,null,null,"2020-02-04T16:36:31",30,"2021-11-07T19:44:49","907465 Volley Oberdiessbach (1 Mandate)","3L - f - Volley Oberdiessbach",1,1,0,null,0,"2019-09-15",0,"N1",5,null,null,"Nein",0,null,"Normales Pensum",6,0]
[4623,82567,"Sahli","Nadine","Sahli Nadine","Bernstrasse",35,null,3270,"Aarberg","nadine.sahli@ewanet.ch","nadine.sahli@ewanet.ch;",null,null,"079 607 67 79",null,null,null,null,null,null,null,null,null,"D",2004,null,null,"2021-08-25T13:11:40",25,"2021-10-30T12:40:15","907005 Aarberg Volero (1 Mandate)",null,1,0,0,null,0,"2021-09-12",0,"N1",6,null,null,"Nein",0,null,"Normales Pensum",3,2,"Bei mir ist es unter der Woche sehr unterschiedlich, da ich das Gymnasium besuche und nicht immer gleich lange Schule habe. Ich habe im meinen Angaben einfach den längsten Schultag berechnet.","Immer noch unregelmässige Arbeitszeit"]
[3072,121167,"Sanapo","Alfio","Sanapo Alfio","Haselrain ",19,null,3186,"Düdingen","alfiosan70@gmail.com","alfiosan70@gmail.com;",null,null,"079 619 43 74",null,null,null,null,null,null,null,null,null,"D",1970,null,null,"2021-07-06T09:41:41",29,"2021-11-11T09:36:29","907110 VBC Bern (1 Mandate), 907335 Köniz Satus (1 Mandate)",null,0,1,0,null,0,null,0,"N",1,null,null,"Nein",0,null,"Doppeltes Pensum",0,0,"09.09.2021 Andy: ggf. mit Anna-Lisa Honegger zusammen"]
[4455,208446,"Sanapo","Dominika","Sanapo Dominika","Haselrain ",19,null,3186,"Düdingen","d.sanapo@gmail.com","d.sanapo@gmail.com;",null,null,"079 246 73 67",null,null,null,null,null,null,null,null,null,"D",1981,null,null,"2020-10-05T13:52:55",29,"2021-11-12T09:39:13","907820 VBC Uni Bern  (1.5 Mandate)","3L pro - f - VC Uettligen",0,1,0,null,0,"2020-09-20",0,"N1",6,null,null,"Nein",0,null,"1½ Pensum",6,2,null,"Wenn es 2-3x nicht mit ÖV geht, gelange ich auch auf irgendeinen weg mit Privat hin aber eher ausnahmen und nicht immer. "]
[4452,56121,"Sanapo","Tiziano","Sanapo Tiziano","Haselrain",19,null,3186,"Düdingen","tiziano.sanapo@gmail.com","tiziano.sanapo@gmail.com;",null,null,"079 268 88 43",null,null,null,null,null,null,null,null,null,"D",2003,null,null,"2020-08-14T12:26:25",67,"2021-11-11T23:06:41","907820 VBC Uni Bern  (1 Mandate)","3L - m - VBC Uni Bern, U20-2 - m - VBC Uni Bern",0,1,0,null,0,"2020-09-20",0,"N1",5,null,null,"Nein",0,null,"1½ Pensum",8,2]
[3592,11542,"Scheidegger","Raphael","Scheidegger Raphael","Blumensteinstrasse",2,null,3012,"Bern","raphael.scheidegger@bluemail.ch","raphael.scheidegger@bluemail.ch;",null,null,"079 836 48 47 ",null,null,null,null,null,null,null,null,null,"D",1993,null,null,"2020-09-06T21:29:47",75,"2021-11-04T11:11:14","907456 Volley Muri Bern (0.5 Mandate), 907465 Volley Oberdiessbach (0.5 Mandate)",null,1,1,0,null,0,"2017-09-03",0,"N3",2,null,null,"Nein",0,null,"Normales Pensum",1,0,"Sehr gerne Freitag Abend z.B. Muristalden, wenn ich nicht selber spiele ;)","19.08.2020: Da ich ÖV-Nutzer bin, bitte keine Einsätze in abgelegenen, resp. mit dem ÖV nur schwer erreichbaren Regionen, darunter fallen explizit Einsätze beim Regiovolleyteam, dagegen bin ich z.B. für Einsätze in der Stadt Bern durchaus zu haben. Besten Dank für die Berücksichtigung."]
[4622,39173,"Scheurmann","Léonie","Scheurmann Léonie","Gutenbergstrasse",50,null,3011,"Bern","leonie-vs@bluewin.ch","leonie-vs@bluewin.ch;",null,null,"079 960 47 48",null,null,null,null,null,null,null,null,null,"D",1992,null,null,"2021-09-06T16:33:19",74,"2021-11-08T16:12:36","907620 Volleyball Papiermühle (1 Mandate)","3L pro - f - Volleyball Papiermühle a",1,0,0,null,0,"2021-09-12",0,"N1",6,null,null,"Nein",0,null,"Normales Pensum",6,0]
[3905,74903,"Schmid","Saskia","Schmid Saskia","Im Winkel","28b",null,4565,"Recherswil","sassi.schmid44@gmail.com","sassi.schmid44@gmail.com;",null,null,"076 675 79 96",null,null,null,null,null,null,null,null,null,"D",2000,null,null,"2020-09-21T15:21:23",17,"2021-11-06T15:21:51","907192 VBC Herzogenbuchsee (0.5 Mandate)","3L - f - VBC Herzogenbuchsee",0,1,0,null,0,null,1,"N1",4,null,null,"Nein",0,null,"Halbes Pensum",5,2,"Spielerin bei 3L - f - VBC Herzogenbuchsee","Lieber Herr der Einteilung Falls es möglich ist, möchte ich gerne hauptsächlich im Raum Emmental meine Einsätze als Schiedsrichterin leisten. Ich bin ein leidenschaftlicher Hockeyfan und habe nur zu der Ausbildung zugesagt, weil mir mein Verein versichert hat, dass ich keine Terminkollision habe, da der Eishockey-Spielplan vorher publiziert wird, als ich mich für die Einsätze eintragen muss. Nun ist aber Corona und der Spielplan der Eishockeysaison ist noch nicht öffentlich… Deshalb stelle ich mich für jeden Samstag, welche im Kalender nicht abgehäkelt sind, zur Verfügung um einen Match zu pfeifen. Allerdings sollte die späteste Anspielzeit jeweils um 16.00 h sein, sofern diese den Raum Emmental betrifft. Besten Dank für dein Verständnis. "]
[3154,91339,"Schorno","Christoph","Schorno Christoph","Mülital",4,null,3270,"Aarberg","christoph.schorno@gmx.ch","christoph.schorno@gmx.ch;",null,null,"079 601 53 69",null,null,null,null,null,null,null,null,null,"D",1967,null,null,"2021-10-13T15:06:57",115,"2021-10-24T16:36:28","907335 Köniz Satus (2 Mandate)",null,0,1,0,null,0,null,0,"N1",3,"N1",3,"Nein",0,"907820 | VBC Uni Bern","Doppeltes Pensum",9,0,"- Gerne an Samstagen, zwei Matches am gleichen Ort.  - Ich werde am Berner Cup nur sehr sparsam, wenn überhaupt     mitmachen, wegen einigen unerfreulichen Erfahrungen ...  - Matches an So, bitte nur in Ausnahmefällen","erledigt: Einsatz als Schiri für die 3.RL VG Rüdtligen"]
[4448,57892,"Schulthess","Leona","Schulthess Leona","Speichergasse",16,null,3150,"Schwarzenburg","leona.schulthess@gmx.ch","leona.schulthess@gmx.ch;",null,null,"079 951 26 02",null,null,null,null,null,null,null,null,null,"D",2001,null,null,"2020-08-30T17:59:41",146,"2021-10-30T13:43:30","907646 VBC Schwarzenburg (1 Mandate)","4L - f - VBC Schwarzenburg",1,0,0,null,0,"2020-09-20",0,"N1",6,null,null,"Nein",0,null,"Normales Pensum",2,0,null,"Blutiger Anfänger :)  "]
[3992,26026,"Schärer","Fabienne","Schärer Fabienne","Rumiweg",11,null,4900,"Langenthal","fabienne_schaerer@bluewin.ch",{"$f":"CONCATENATE(K131,\";\")","v":"fabienne_schaerer@bluewin.ch;"},null,null,"079 533 00 42",null,null,null,null,null,null,null,null,null,"D",1992,null,null,"2020-06-08T07:18:44",148,"2021-11-09T23:19:04","907920 VBC Langenthal (1 Mandate)","2L - f - VBC Langenthal",1,1,0,null,0,null,0,"N1",4,null,null,"Nein",0,null,"Normales Pensum",5,0,null,"Linienrichter und Schiedsrichter"]
[3955,138803,"Sigrist","Andy",{"$f":"CONCATENATE(C132,\" \",D132)","v":"Sigrist Andy"},"Grimmengasse",4,null,4500,"Solothurn","aufgebotsstelle@volleybern-solothurn.ch","aufgebotsstelle@volleybern-solothurn.ch;",null,null,"079 571 17 03",null,null,null,null,null,null,null,null,null,"D",1979,null,null,"2021-08-31T20:27:24",114,"2021-11-11T11:41:34","907926 Volley Solothurn (2 Mandate)",null,1,1,0,null,0,null,0,"N",1,null,null,"Nein",0,null,"Doppeltes Pensum",4,0,"907926 Volley Solothurn"]
[3117,49925,"Spichiger","Aline","Spichiger Aline","Rathausplatz",4,null,3011,"Bern","aline.spichiger@bluewin.ch","aline.spichiger@bluewin.ch;",null,null,"079 769 01 42",null,null,null,null,null,null,null,null,null,"D",1995,null,null,"2021-06-22T14:38:11",103,"2021-10-29T18:09:19","907450 VBC Münchenbuchsee (0.5 Mandate)","3L pro - f - VBC Münchenbuchsee",1,0,0,null,0,null,0,"N3",2,null,null,"Nein",0,null,"Halbes Pensum",0,0,null,"Am Abend ist es bei mir schwierig weil ich bis 18.00 arbeite, jedoch kann ich fast immer am Wochenende."]
[3998,30238,"Stanossek","Romy","Stanossek Romy","Dammstrasse",23,null,4528,"Zuchwil","romy.stanossek@hotmail.com","romy.stanossek@hotmail.com;","079 657 37 88",null,"079 657 37 88",null,null,null,null,null,null,null,null,null,"D",1996,null,null,"2021-10-14T16:08:25",105,"2021-09-21T18:48:11","907922 STV Oensingen (1 Mandate)",null,1,1,0,null,0,null,0,"N1",3,null,null,"Nein",0,null,"Normales Pensum",0,0]
[4434,83321,"Steimann","Annalena","Steimann Annalena","Dahlienweg","6k",null,3422,"Kirchberg","annalena.steimann@yahoo.com","annalena.steimann@yahoo.com;",null,null,"076 327 85 23",null,null,null,null,null,null,null,null,null,"D",2002,null,null,"2021-11-01T21:11:06",14,"2021-11-07T16:48:25","907200 VBC Burgdorf (1 Mandate)","3L - f - VBC Burgdorf b, U17-2 - f - VBC Burgdorf",1,0,0,null,0,"2020-09-20",0,"N1",6,null,null,"Nein",0,null,"Normales Pensum",4,0,"Wenn es 2-3x nicht mit ÖV geht, gelange ich auch auf irgendeinen weg mit Privat hin aber eher ausnahmen und nicht immer. "]
[3908,69407,"Stuber","Thomas","Stuber Thomas","Rosenweg",33,null,4500,"Solothurn","herren-3@vbcaeschi.ch","herren-3@vbcaeschi.ch;",null,null,"079 776 91 43",null,null,null,null,null,null,null,null,null,"D",1976,null,null,"2019-09-17T17:39:14",101,"2021-11-05T18:51:24","907921 VBC Aeschi (1 Mandate)","3L - m - VBC Aeschi",1,0,0,null,0,null,24,"N3",2,null,null,"Nein",0,null,"Normales Pensum",2,0,"22.07.2021: Da ich ÖV-Nutzer bin, bitte keine Einsätze in abgelegenen, resp. mit dem ÖV nur schwer erreichbaren Regionen, darunter fallen explizit Einsätze beim Regiovolleyteam, dagegen bin ich z.B. für Einsätze in der Stadt Bern durchaus zu haben. Besten Dank für die Berücksichtigung."]
[4456,88432,"Stucki","Chantal","Stucki Chantal","Schulhausmatte",18,null,3415,"Rüegsauschachen","chantalstucki@gmx.ch","chantalstucki@gmx.ch;",null,null,"078 802 09 06",null,null,null,null,null,null,null,null,null,"D",2000,null,null,"2021-09-07T19:57:02",55,"2021-11-12T06:29:12","907390 VBC Lützelflüh (1 Mandate)","4L - f - VBC Lützelflüh, U23-3 - f - VBC Lützelflüh",1,0,0,null,0,"2020-09-20",0,"N1",5,null,null,"Nein",0,null,"Normales Pensum",10,0,"Lieber Herr der Einteilung Falls es möglich ist, möchte ich gerne hauptsächlich im Raum Emmental (insbesondere Sumiswald) meine Einsätze als Schiedsrichterin leisten.  Besten Dank für dein Verständnis. "]
[3204,92377,"Stucki","Nicole","Stucki Nicole","Minderweg",7,null,3400,"Burgdorf","nicstu77@gmail.com","nicstu77@gmail.com;",null,null,"079 833 40 12",null,null,null,null,null,null,null,null,null,"D",1977,null,null,"2021-06-02T17:52:24",117,"2021-10-31T15:45:29","907550 VG Rüdtligen  (2 Mandate)",null,0,1,0,null,0,null,0,"N1",3,null,null,"Nein",0,null,"Doppeltes Pensum",7,0,"erledigt: Einsatz als Schiri für die 3.RL VG Rüdtligen und 5 RL Rüdtligen","Ich arbeite 80% und mache nebenbei die Höhere Fachschule in Bern (gesamtes Arbeitspensum = 120%) daher habe ich selten freie Termine unter der Woche. An den Wochenenden habe ich hin und wieder samstagmorgens Schule."]
[3633,53960,"Suter","Corina","Suter Corina","Zeltnerweg",9,null,4500,"Solothurn","corina@zeltnerweg9.ch","corina@zeltnerweg9.ch;","032 622 60 38",null,"077 401 68 24",null,null,null,null,null,null,null,null,null,"D",1968,null,null,"2021-07-24T13:27:09",45,"2021-11-03T22:31:25","907926 Volley Solothurn (2 Mandate)","3L - f - Volley Solothurn b, 4L - f - Volley Solothurn, U17-2 - f - Volley Solothurn ",0,1,0,null,0,null,19,"N3",2,null,null,"Nein",0,null,"Doppeltes Pensum",5,0,"Linienrichter und Schiedsrichter"]
[3904,47119,"Sägesser","Kurt","Sägesser Kurt","Aeschweg",17,null,3302,"Moosseedorf","saegesser@sunrise.ch","saegesser@sunrise.ch;","062 923 43 33",null,"076 440 03 30",null,null,null,null,null,null,null,null,null,"D",1969,null,null,"2019-06-17T22:52:59",77,"2021-11-11T20:34:10","907925 Regio Volleyteam (1 Mandate)",null,1,1,0,null,0,null,9,"N2",3,null,null,"Nein",0,null,"Normales Pensum",2,0,null,"Ich kann auch ein Match pfeiffen wenn ich am selben Tag selbst Match habe, wenn es Zeitlich aufgeht."]
[4621,107520,"Utke","Jonas","Utke Jonas","Weidenweg ","8g",null,3608,"Thun","jonas.utke@live.com","jonas.utke@live.com;","033 335 01 42",null,"079 604 85 09",null,null,null,null,null,null,null,null,null,"D",2000,null,null,"2021-10-13T09:10:52",31,"2021-11-05T23:58:25","907800 VBC Thun (1 Mandate)",null,1,0,0,null,0,"2021-09-18",0,"N1",6,null,null,"Nein",0,null,"Normales Pensum",5,0,"Arbeite Nebenbei beim Coop. Einsätze sind noch nicht bekannt"]
[3107,209310,"von Allmen","Alain","von Allmen Alain","Eisenbahnstrasse",55,null,3645,"Gwatt (Thun)","vonallmenalain@gmail.com","vonallmenalain@gmail.com;",null,null,"079 754 34 70",null,null,null,null,null,null,null,null,null,"D",1988,null,null,"2017-06-10T12:39:57",205,"2021-11-10T09:40:26","907295 TV Zollikofen (0.5 Mandate)",null,1,1,0,null,0,null,0,"N",1,null,null,"Nein",0,null,"Halbes Pensum",0,0,null,"24.Juni 2020 Ich verfüge über kein Auto und bin darauf angewiesen, dass mindestens die Spiele unter der Woche mit dem Velo erreichbar sind. "]
[4436,68187,"von Ballmoos","Rahel","von Ballmoos Rahel","Sängeliweg ",8,null,4922,"Thunstetten","r.vonballmoos@gmx.ch","r.vonballmoos@gmx.ch;",null,null,"076 593 05 01",null,null,null,null,null,null,null,null,null,"D",2000,null,null,"2020-08-28T12:38:46",49,"2021-11-11T20:04:51","907920 VBC Langenthal (1 Mandate)","U23-3 - f - VBC Langenthal",1,1,0,null,0,"2020-09-20",0,"N1",6,null,null,"Nein",0,null,"Normales Pensum",5,0]
[4620,105568,"Waber","Sarah","Waber Sarah","Lengacker ",5,null,4938,"Rohrbach","sarah.waber@bluewin.ch","sarah.waber@bluewin.ch;","062 965 01 36",null,"079 947 11 03",null,null,null,null,null,null,null,null,null,"D",2002,null,null,"2021-09-04T06:22:18",26,"2021-10-22T17:00:39","907920 VBC Langenthal (1 Mandate)",null,1,1,0,null,0,"2021-09-12",0,"N1",6,null,null,"Nein",0,null,"Normales Pensum",5,0]
[4619,60831,"Waldburger","Giulia","Waldburger Giulia","Hofstettenstrasse",9,null,3600,"Thun","giulia-wb@hotmail.com","giulia-wb@hotmail.com;",null,null,"079 854 15 91",null,null,null,null,null,null,null,null,null,"D",2000,null,null,"2021-10-13T09:12:53",131,"2021-11-09T19:13:20","907800 VBC Thun (1 Mandate)","3L pro - f - VBC Thun b",1,0,0,null,0,"2021-08-29",0,"N1",6,null,null,"Nein",0,null,"Normales Pensum",4,0,"Ich arbeite in der Pflege und habe ein unregelmässigen Arbeitsplan, daher teilweise erschwerte Planung","Ich werde ab mitte Saison (Januar 2021) in Luzern leben und nicht mehr in St. Stephan."]
[4603,181700,"Walker","Melanie","Walker Melanie","Allmendstrasse",17,null,1712,"Tafers","walker.melanie@gmx.ch","walker.melanie@gmx.ch;",null,null,"079 716 07 61",null,null,null,null,null,null,null,null,null,"D",1983,null,null,"2020-09-01T07:22:22",205,"2021-11-12T07:32:31",null,null,0,1,0,null,0,null,0,"N2",2,null,null,"Nein",0,null,"Halbes Pensum",1,0,"Bezieht SR Lizenz bei Fribourg"]
[4437,115018,"Weber-Gyger","Susanne","Weber-Gyger Susanne","Dorfstrasse",8,null,3438,"Lauperswil","susanneres@bluewin.ch","susanneres@bluewin.ch;",null,null,"079 565 04 33",null,null,null,null,null,null,null,null,null,"D",1973,null,null,"2020-05-11T09:07:13",127,"2021-11-08T08:23:42","907370 VT Langnau (1 Mandate)","4L - f - VT Langnau",0,1,0,null,0,"2020-09-20",0,"N1",6,null,null,"Nein",0,null,"Normales Pensum",0,0,"14.09.21 A. Sigrist: Kein Covid-Zertifikat"]
[3116,17672,"Weidmann","Melanie","Weidmann Melanie","Im Kläyhof",8,null,3052,"Zollikofen","melanie.weidmann@gmx.ch","melanie.weidmann@gmx.ch;",null,null,"079 538 08 28",null,null,null,null,null,null,null,null,null,"D",1992,null,null,"2018-09-10T07:57:16",94,"2021-11-05T11:12:20","907450 VBC Münchenbuchsee (1 Mandate)","4L - f - VBC Münchenbuchsee",0,1,0,null,0,null,0,"N1",4,null,null,"Nein",0,null,"Normales Pensum",6,0]
[3914,70561,"Werren","Janine","Werren Janine","Gartenstrasse",23,null,4600,"Olten","janine.werren@gmail.com","janine.werren@gmail.com;",null,null,"078 657 76 50",null,null,null,null,null,null,null,null,null,"D",1994,null,null,"2021-09-06T11:25:13",105,"2021-10-28T13:33:21","907214 FTV Kappel (1 Mandate)","4L - f - D/FTV Kappel",1,0,0,null,0,null,3,"N1",3,null,null,"Nein",0,null,"Normales Pensum",2,0,"Ich arbeite jeweils Samstagabends ab 17.00 Uhr in Olten. D.h. ich wäre sehr froh, wenn ich die jeweiligen Einsätze samstags vor 14.00 Startbeginn habe, da es mir ansonsten nicht rechtzeitig zum Arbeiten reicht."]
[4618,94337,"Wey","Angelina","Wey Angelina","Altenherren",5,null,3150,"Schwarzenburg","angelina.wey@sunrise.ch","angelina.wey@sunrise.ch;",null,null,"077 535 74 34",null,null,null,null,null,null,null,null,null,"D",2005,null,null,"2021-09-06T14:23:35",53,"2021-11-11T14:12:31","907646 VBC Schwarzenburg (1 Mandate)","U19-2 - f - VBC Schwarzenburg",1,1,0,null,0,"2021-09-12",0,"N1",6,null,null,"Nein",0,null,"Normales Pensum",3,0,null,"In ausserordentlichen Fällen könnte ich allenfalls ein Auto organisieren. Arbeitsort in Aarau, deshalb nicht allzu früh unter der Woche. Falls möglich an Wochenenden gerade 2 Matches nacheinander."]
[3916,221595,"Wieland","Noeh-Curdin","Wieland Noeh-Curdin","Stalden",21,null,4500,"Solothurn","noehwieland@icloud.com","noehwieland@icloud.com;",null,null,"079 675 03 66",null,null,null,null,null,null,null,null,null,"D",1989,null,null,"2020-07-01T10:46:07",81,"2021-10-30T16:12:39","907921 VBC Aeschi (1 Mandate)","3L - m - VBC Aeschi, U17-2 - f - VBC Aeschi",1,0,0,null,0,null,12,"N3",2,null,null,"Nein",0,null,"Normales Pensum",1,0,"09. Juni 2021 Ich verfüge über kein Auto und bin darauf angewiesen, dass mindestens die Spiele unter der Woche mit dem Velo erreichbar sind. "]
[4453,92368,"Winistörfer","Timon","Winistörfer Timon","Brunnstubenstrasse ",16,null,4553,"Subingen","timon.winistoerfer@quickline.ch","timon.winistoerfer@quickline.ch;",null,null,"076 803 45 53",null,null,null,null,null,null,null,null,null,"D",2003,null,null,"2020-08-31T09:54:08",205,"2021-09-06T21:43:25","907921 VBC Aeschi (1 Mandate)",null,1,1,0,null,0,"2020-09-20",0,"N1",6,null,null,"Nein",0,null,"Normales Pensum",0,0,null,"Keine Spiele von: STB Herren 1.Liga / VBC Münsingen 1.Liga Damen / Volley Muri Bern  (Da ich alle Spieler/innen zu gut kenne und selbst bei diesen Teams Trainer oder Spieler war)"]
[3195,74100,"Wyttenbach","André","Wyttenbach André","Winkelriedstrasse",36,null,3014,"Bern","andre.wyttenbach@gmail.com","andre.wyttenbach@gmail.com;",null,null,"079 283 10 30",null,null,null,null,null,null,null,null,null,"D",1986,null,null,"2021-09-06T10:12:30",109,"2021-10-12T10:04:23","907375 Lerbermatt Mittelschule (1 Mandate)","2L - m - MS Lerbermatt",0,1,0,null,0,null,0,"N1",4,null,null,"Nein",0,null,"Normales Pensum",4,2]
[4169,82423,"Wäfler","Lynn","Wäfler Lynn","Hübelistrasse",27,null,3510,"Konolfingen","pippilynn23@gmail.com","pippilynn23@gmail.com;","031 791 20 18",null,"078 897 13 52",null,null,null,null,null,null,null,null,null,"D",2003,null,null,"2021-09-05T20:19:52",27,"2021-09-21T11:31:20","907350 VBC Konolfingen (0.5 Mandate)","4L - f - VBC Konolfingen, U23-2 - f - VBC Konolfingen",1,0,0,null,0,"2019-09-07",0,"N1",5,null,null,"Nein",0,null,"Halbes Pensum",4,0,"(unregelmässige Arbeitszeiten) Dienstag ab 14:00 Samstag c.a 18:45 Sonntag c.a 8:00"]
[3921,29356,"Zaugg","Peter","Zaugg Peter","Bannholzmatt",1,null,4556,"Aeschi SO","herren-2@vbcaeschi.ch","herren-2@vbcaeschi.ch;",null,null,"078 907 42 50",null,null,null,null,null,null,null,null,null,"D",1967,null,null,"2019-09-10T11:53:32",141,"2021-09-20T13:34:10","907921 VBC Aeschi (1 Mandate)","2L - m - VBC Aeschi b",1,1,0,null,0,null,3,"N1",4,null,null,"Nein",0,null,"Normales Pensum",0,0]
[4438,47784,"Zehnder","Anna","Zehnder Anna","Speiserstrasse",10,null,4600,"Olten","anna.lea.zehnder@bluewin.ch","anna.lea.zehnder@bluewin.ch;",null,null,"079 255 38 58",null,null,null,null,null,null,null,null,null,"D",1992,null,null,"2021-09-06T13:09:00",35,"2021-11-06T09:08:35","907360 TV Länggasse Bern (1 Mandate)","3L - f - TV Länggasse Bern",1,0,0,null,0,"2020-09-20",0,"N1",6,null,null,"Nein",0,null,"Normales Pensum",4,0,"In ausserordentlichen Fällen könnte ich allenfalls ein Auto organisieren. Arbeitsort in Aarau, deshalb nicht allzu früh unter der Woche. Falls möglich an Wochenenden gerade 2 Matches nacheinander.","Bekomme Ende September 2020 zweites Kind, somit keine Spiele in der Vorrund. 1/2 Mandat in der Rückrunde. Danke"]
[3136,39213,"Zellweger","Fabienne","Zellweger Fabienne","Baumgartenstrasse",19,null,3018,"Bern","f.zellweger@gmx.net","f.zellweger@gmx.net;",null,null,"079 266 45 54",null,null,null,null,null,null,null,null,null,"D",1990,null,null,"2020-08-17T19:29:05",null,"2021-10-31T07:06:52",null,null,1,1,0,null,0,null,0,"RD",null,null,null,"Nein",0,null,"Normales Pensum",0,0]
[3594,207865,"Zimmermann","David","Zimmermann David","Kistlerstrasse",25,null,3065,"Bolligen","dave-z@bluemail.ch","dave-z@bluemail.ch;",null,null,"078 835 62 92",null,null,null,null,null,null,null,null,null,"D",1985,null,null,"2021-06-30T23:10:11",66,"2021-11-04T13:38:24","907375 Lerbermatt Mittelschule (0.5 Mandate), 907620 Volleyball Papiermühle (0.5 Mandate)","2L - m - Volleyball Papiermühle",1,0,0,null,0,"2017-09-03",0,"N3",2,null,null,"Nein",0,null,"Normales Pensum",6,0,"Keine Spiele von: STB Herren 1.Liga / VBC Münsingen 1.Liga Damen / Volley Muri Bern  (Da ich alle Spieler/innen zu gut kenne und selbst bei diesen Teams Trainer oder Spieler war)"]
[4173,72809,"Zuberbühler","Benjamin","Zuberbühler Benjamin","Parkweg",39,null,3053,"Münchenbuchsee","beni.zuberbuehler@jesus.ch","beni.zuberbuehler@jesus.ch;",null,null,"079 653 74 25",null,null,null,null,null,null,null,null,null,"D",2001,null,null,"2019-11-15T10:21:57",141,"2021-10-29T17:13:42","907450 VBC Münchenbuchsee (0.5 Mandate)","1L - m - VBC Münchenbuchsee",1,0,0,null,0,"2019-09-01",0,"N1",5,null,null,"Nein",0,null,"Halbes Pensum",3,0,"Halbes Mandat, alle Einsätze bis Ende 2021"]
[4184,73286,"Zulauf","Michelle","Zulauf Michelle","Güterstrasse",12,null,3008,"Bern","michelle.zulauf@gmx.ch","michelle.zulauf@gmx.ch;",null,null,"076 536 92 92",null,null,null,null,null,null,null,null,null,"D",2000,null,null,"2021-10-05T11:58:02",118,"2021-10-23T09:18:35","907820 VBC Uni Bern  (1 Mandate)","3L - f - VBC Uni Bern",1,0,0,null,0,"2019-09-01",0,"N1",5,null,null,"Nein",0,null,"Normales Pensum",3,0]
[3098,221714,"Zulian","Deborah","Zulian Deborah","Weiermattweg",32,null,3098,"Köniz","zulian.deborah@gmail.com","zulian.deborah@gmail.com;",null,null,"078 605 95 93",null,null,null,null,null,null,null,null,null,"D",1986,null,null,"2019-09-04T09:01:40",1,"2021-11-06T11:21:46","907440 VBC Münsingen (1 Mandate)",null,1,0,0,null,0,null,0,"N3",2,null,null,"Nein",0,null,"Normales Pensum",3,0,"Ich habe jetzt nur ein halbes Mandat drinn. Werde aber dies sicher auf ein ganzes füllen mit spielen aus der Börse. Möchte zuerst schauen, wie es so läuft. "]

{"sheet":"Regionen","index":4,"n_rows":15,"n_cols":14,"rows_kept":15,"cut":false,"hidden":true,"merged":[]}
["Regionen",null,null,null,"Sprachen",null,"Doppelspiel",null,"Sprache",null,"Entschädigung RL",null,null,"Spesen RL / km"]
["SV Region Aargau","SVRA",null,null,"Deutsch",null,{"$f":"IF(I2=\"Deutsch\",\"NLA\",IF(I2=\"Français\",\"LNA\",IF(I2=\"Italiano\",\"LNA\")))","v":"NLA"},null,{"$f":"SSK_Spesenblatt!Sprache","v":"Deutsch"},null,"2L",60,null,0.7]
["SV Region Bern-Solothurn","SVRBESO",null,null,"Français",null,{"$f":"IF(I2=\"Deutsch\",\"NLB\",IF(I2=\"Français\",\"LNB\",IF(I2=\"Italiano\",\"LNB\")))","v":"NLB"},null,null,null,"3L",50]
["SV Region Basel","SVRBS",null,null,"Italiano",null,{"$f":"IF(I2=\"Deutsch\",\"1L\",IF(I2=\"Français\",\"1L\",IF(I2=\"Italiano\",\"1L\")))","v":"1L"},null,null,null,"4L",50]
["SV Region Freiburg","SVRF",null,null,null,null,{"$f":"IF(I2=\"Deutsch\",\"LR\",IF(I2=\"Français\",\"LR\",IF(I2=\"Italiano\",\"LR\")))","v":"LR"},null,null,null,"5L",50]
["SV Region Genf","SVRGE",null,null,null,null,{"$f":"IF(I2=\"Deutsch\",\"RL\",IF(I2=\"Français\",\"RL\",IF(I2=\"Italiano\",\"RL\")))","v":"RL"}]
["SV Region GSGL","GSGL"]
["SV Region Innerschweiz","SVRI"]
["SV Region Jura-Seeland","SVRJS"]
["SV Region Neuenburg","SVRN"]
["SV Region Nord-Ostschweiz","SVRNO"]
["SV Region Tessin und Moesa","SVRT"]
["SV Region Waadt","SVRV"]
["SV Region Wallis","SVRVS"]
["SV Region Zürich","SVRZ"]